{"text_format":"1","workbook":"xlsx","n_sheets":14,"sheets":["Herramienta MAI","Hoja1","ListaMun","Regional","Comunidades","Listas","Caracterización","Vivienda - Hogar","Horcones","Comunitario","Base caracterizacion","Base vivienda-hogar","Base Horcones","Base Comunitario"],"not_rendered":{"charts":0,"images":3,"macros":1,"external_links":3,"defined_names":143,"comments":0,"pivot_tables":0},"unopened":[],"bounds":{"document_bytes":16777216,"sheet_cells":100000,"rows_first":2000,"rows_last":500,"rows_between":2000,"halvings":0,"cell_chars":16384,"cell_head_chars":4096},"cells_cut":0,"cells_raw":0,"read":"whole","date_system":"1900"}

{"sheet":"Herramienta MAI","index":0,"n_rows":11,"n_cols":70,"rows_kept":11,"cut":false,"hidden":false,"merged":[[0,4,2,12]]}
[]
[]
[]
[]
[]
[]
[]
[]
[]
[]
[null,null,null,null,null,null,null,null,null,null,null,null,null,null,null,null,null,null,null,null,null,null,null,null,null,null,null,"2021-01-01","2021-01-30",2,"2021-02-01","2021-02-28",3,"2021-03-01","2021-03-30",4,"2021-04-01","2021-04-30",5,"2021-05-01","2021-05-30",6,"2021-06-01","2021-06-30",7,"2021-07-01","2021-07-30",8,"2021-08-01","2021-08-10",9,"2021-01-01","2021-01-30",10,"2021-02-01","2021-02-28",11,"2021-03-01","2021-03-01",12,"2021-04-01","2021-04-30","Observación 6","Inclusión social","Cultura, recreación y deportes","Actividades culturales ","Niños, Niñas y Adolescentes","NO",null,"NO"]

{"sheet":"Hoja1","index":1,"n_rows":6,"n_cols":38,"rows_kept":6,"cut":false,"hidden":true,"merged":[[0,0,0,24],[1,0,1,24],[3,17,3,24],[3,0,4,0],[3,1,4,1],[3,2,4,2],[3,3,4,3],[3,4,4,4],[3,5,4,5],[3,6,4,6],[3,7,4,7],[3,8,4,8],[3,9,4,9],[3,25,4,25],[3,10,4,10],[3,11,4,11],[3,12,4,12],[3,13,4,13],[3,14,3,16]]}
["FORMULARIO HOGARES"]
["MAI"]
[]
["No. Persona","Primer Nombre","Segundo Nombre ","Primer Apellido","Segundo Apellido ","Sexo","Fecha de nacimiento","Linaje","Departamento nacimiento","Municipio Nacimiento","Tipo de identificación","¿Está registado en el autocenso de la comunidad o pueblo?","Parentesco con el jefe de hogar","Estado civil","¿Cuáles son sus roles en la comunidad?",null,null,"Por enfermedad, accidente o de nacimiento tiene limitantes permanentes para",null,null,null,null,null,null,null,"¿A cuál de los siguientes regímenes de seguridad social está afiliado como cotizante o beneficiario?"]
[null,null,null,null,null,null,null,null,null,null,null,null,null,null,"Rol 1","Rol 2","Rol 3","1. Ver","2. Oír","3. Hablar","4. Moverse o caminar por sí mismo","5. Bañarse, vestirse, alimentarse por si mismo ","6. desplazarse fuera de la vivienda sin ayuda o compañía","7. Entender o aprender","8. Ninguna de los anteriores",null,"12.3. En los ÚLTIMOS 30 DÍAS, ¿… tuvo alguna enfermedad, accidente, problema odontológico o algún otro problema de salud que NO haya implicado hospitalización? ","¿Acudió a una institución prestadora de servicios de salud, puesto de salud, profesional o promotor de salud? ","¿Lo atendieron?","¿Acudió al médico tradicional?","¿Lo atendieron?","¿Está embarazada?","¿Ha tenido hijos nacidos vivos?","Tiene hijos/hijas de 0 a 2 años?","¿La leche materna es parte de la alimentación?","¿Su hijo está entre los 0 y 6 meses?","¿La alimentación es exclusivamente leche materna?","¿Dónde o con quién permanece … durante la mayor parte del tiempo entre semana? (Si contesta algo diferente a 1 pase a 13.3.) "]
[null,null,null,null,null,"1 - Hombre",null,null,null,null,"8. Permiso especial de permanencia ","3. No sabe ","5. Padre, madre, padrastro, madrastra ","5. Soltero(a) ","1. Mamo ","5. Fiscal","7. Secretario ","Sí","No","No","No","No","Sí","No","Sí","3. Subsidiado (EPS) ","2. No ","1. Sí","2. No ","1. Sí","2. No ","2. No ","2. No ","2. No ","2. No ","2. No ","2. No ","6. Al cuidado de un pariente menor de 18 años "]

{"sheet":"ListaMun","index":2,"n_rows":126,"n_cols":34,"rows_kept":126,"cut":false,"hidden":true,"merged":[]}
["AMAZONAS","ANTIOQUIA","ARAUCA","ATLÁNTICO","BOGOTA_D.C.","BOLÍVAR","BOYACÁ","CALDAS","CAQUETÁ","CASANARE","CAUCA","CESAR","CHOCÓ","CÓRDOBA","CUNDINAMARCA","GUAINÍA","GUAVIARE","HUILA","LA_GUAJIRA","MAGDALENA","META","NARIÑO","NORTE_DE_SANTANDER","PUTUMAYO","QUINDIO","RISARALDA","SAN_ANDRÉS","SANTANDER","SUCRE","TOLIMA","VALLE_DEL_CAUCA","VAUPÉS","VICHADA","EXTRANJERO"]
["EL ENCANTO ","ABEJORRAL","ARAUCA ","BARANOA","BOGOTA DISTRITO CAPITAL","ACHI ","ALMEIDA","AGUADAS","ALBANIA","AGUAZUL","ALMAGUER ","AGUACHICA","ACANDI ","AYAPEL ","AGUA DE DIOS ","BARRANCO MINAS ","CALAMAR","ACEVEDO","ALBANIA","ALGARROBO","ACACIAS","ALBAN","ABREGO ","COLON","ARMENIA","APIA ","PROVIDENCIA","AGUADA ","BUENAVISTA ","ALPUJARRA","ALCALA ","CARURU ","CUMARIBO ","EXTRANJERO"]
["LA CHORRERA","ABRIAQUI","ARAUQUITA","BARRANQUILLA ",null,"ALTOS DEL ROSARIO","AQUITANIA","ANSERMA","BELEN DE LOS ANDAQUIES ","CHAMEZA","ARGELIA","AGUSTIN CODAZZI","ALTO BAUDO ","BUENAVISTA ","ALBAN","CACAHUAL ","EL RETORNO ","AGRADO ","BARRANCAS","ARACATACA","BARRANCA DE UPIA ","ALDANA ","ARBOLEDAS","LEGUIZAMO","BUENAVISTA ","BALBOA ","SAN ANDRES ","ALBANIA","CAIMITO","ALVARADO ","ANDALUCIA","MITU ","LA PRIMAVERA "]
["LA PEDRERA ","ALEJANDRIA","CRAVO NORTE","CAMPO DE LA CRUZ ",null,"ARENAL ","ARCABUCO ","ARANZAZU ","CARTAGENA DEL CHAIRA ","HATO COROZAL ","BALBOA ","ASTREA ","ATRATO ","CANALETE ","ANAPOIMA ","INIRIDA","MIRAFLORES ","AIPE ","DIBULLA","ARIGUANI ","CABUYARO ","ANCUYA ","BOCHALEMA","MOCOA","CALARCA","BELEN DE UMBRIA",null,"ARATOCA","CHALAN ","AMBALEMA ","ANSERMANUEVO ","PACOA","PUERTO CARREÑO "]
["LA VICTORIA","AMAGA","FORTUL ","CANDELARIA ",null,"ARJONA ","BELEN","BELALCAZAR ","CURILLO","LA SALINA","BOLIVAR","BECERRIL","BAGADO ","CERETE ","ANOLAIMA ","LA GUADALUPE ","SAN JOSE DEL GUAVIARE","ALGECIRAS","DISTRACCION","CERRO SAN ANTONIO","CASTILLA LA NUEVA","ARBOLEDA ","BUCARASICA ","ORITO","CIRCASIA ","DOSQUEBRADAS ",null,"BARBOSA","COLOSO ","ANZOATEGUI ","ARGELIA","PAPUNAUA ","SANTA ROSALIA"]
["LETICIA","AMALFI","PUERTO RONDON","GALAPA ",null,"ARROYOHONDO","BERBEO ","CHINCHINA","EL DONCELLO","MANI ","BUENOS AIRES","BOSCONIA","BAHIA SOLANO ","CHIMA","APULO","MAPIRIPANA ",null,"ALTAMIRA ","EL MOLINO","CHIVOLO","CUBARRAL ","BARBACOAS","CACHIRA","PUERTO ASIS","CORDOBA","GUATICA",null,"BARICHARA","COROZAL","ARMERO ","BOLIVAR","TARAIRA"]
["MIRITI PARANA","ANDES","SARAVENA ","JUAN DE ACOSTA ",null,"BARRANCO DE LOBA ","BETEITIVA","FILADELFIA ","EL PAUJIL","MONTERREY","CAJIBIO","CHIMICHAGUA","BAJO BAUDO ","CHINU","ARBELAEZ ","MORICHAL ",null,"BARAYA ","FONSECA","CIENAGA","CUMARAL","BELEN","CACOTA ","PUERTO CAICEDO ","FILANDIA ","LA CELIA ",null,"BARRANCABERMEJA","COVEÑAS","ATACO","BUENAVENTURA ","YAVARATE "]
["PUERTO ALEGRIA ","ANGELOPOLIS","TAME ","LURUACO",null,"CALAMAR","BOAVITA","LA DORADA","FLORENCIA","NUNCHIA","CALDONO","CHIRIGUANA","BELEN DE BAJIRA","CIENAGA DE ORO ","BELTRAN","PANA PANA",null,"CAMPOALEGRE","HATONUEVO","CONCORDIA","EL CALVARIO","BUESACO","CHINACOTA","PUERTO GUZMAN","GENOVA ","LA VIRGINIA",null,"BETULIA","EL ROBLE ","CAJAMARCA","BUGALAGRANDE "]
["PUERTO ARICA ","ANGOSTURA",null,"MALAMBO",null,"CANTAGALLO ","BOYACA ","LA MERCED","LA MONTAÑITA ","OROCUE ","CALOTO ","CURUMANI","BOJAYA ","COTORRA","BITUIMA","PUERTO COLOMBIA",null,"COLOMBIA ","LA JAGUA DEL PILAR ","EL BANCO ","EL CASTILLO","CHACHAGÜI","CHITAGA","SAN FRANCISCO","LA TEBAIDA ","MARSELLA ",null,"BOLIVAR","GALERAS","CARMEN DE APICALA","CAICEDONIA "]
["PUERTO NARIÑO","ANORI",null,"MANATI ",null,"CARTAGENA","BRICEÑO","MANIZALES","MILAN","PAZ DE ARIPORO ","CORINTO","EL COPEY","CARMEN DEL DARIEN","LA APARTADA","BOJACA ","SAN FELIPE ",null,"ELIAS","MAICAO ","EL PIÑON ","EL DORADO","COLON","CONVENCION ","SAN MIGUEL ","MONTENEGRO ","MISTRATO ",null,"BUCARAMANGA","GUARANDA ","CASABIANCA ","CALIMA "]
["PUERTO SANTANDER ","ANZA",null,"PALMAR DE VARELA ",null,"CICUCO ","BUENAVISTA ","MANZANARES ","MORELIA","PORE ","EL TAMBO ","EL PASO","CERTEGUI ","LORICA ","CABRERA",null,null,"GARZON ","MANAURE","EL RETEN ","FUENTE DE ORO","CONSACA","CUCUTA ","SANTIAGO ","PIJAO","PEREIRA",null,"CABRERA","LA UNION ","CHAPARRAL","CANDELARIA "]
["TARAPACA ","APARTADO",null,"PIOJO",null,"CLEMENCIA","BUSBANZA ","MARMATO","PUERTO RICO","RECETOR","FLORENCIA","GAMARRA","CONDOTO","LOS CORDOBAS ","CACHIPAY ",null,null,"GIGANTE","RIOHACHA","FUNDACION","GRANADA","CONTADERO","CUCUTILLA","SIBUNDOY ","QUIMBAYA ","PUEBLO RICO",null,"CALIFORNIA ","LOS PALMITOS ","COELLO ","CARTAGO"]
[null,"ARBOLETES",null,"POLONUEVO",null,"CORDOBA","CALDAS ","MARQUETALIA","SAN JOSE DEL FRAGUA","SABANALARGA","GUACHENÉ","GONZALEZ ","EL CANTON DEL SAN PABLO","MOMIL","CAJICA ",null,null,"GUADALUPE","SAN JUAN DEL CESAR","GUAMAL ","GUAMAL ","CORDOBA","DURANIA","VALLE DEL GUAMUEZ","SALENTO","QUINCHIA ",null,"CAPITANEJO ","MAJAGUAL ","COYAIMA","DAGUA"]
[null,"ARGELIA",null,"PONEDERA ",null,"EL CARMEN DE BOLIVAR ","CAMPOHERMOSO ","MARULANDA","SAN VICENTE DEL CAGUAN ","SACAMA ","GUAPI","LA GLORIA","EL CARMEN DE ATRATO","MONTELIBANO","CAPARRAPI",null,null,"HOBO ","URIBIA ","NUEVA GRANADA","LA MACARENA","CUASPUD","EL CARMEN","VILLAGARZON",null,"SANTA ROSA DE CABAL",null,"CARCASI","MORROA ","CUNDAY ","EL ÁGUILA"]
[null,"ARMENIA",null,"PUERTO COLOMBIA",null,"EL GUAMO ","CERINZA","NEIRA","SOLANO ","SAN LUIS DE PALENQUE ","INZA ","LA JAGUA DE IBIRICO","EL LITORAL DEL SAN JUAN","MONTERIA ","CAQUEZA",null,null,"IQUIRA ","URUMITA","PEDRAZA","LEJANIAS ","CUMBAL ","EL TARRA ",null,null,"SANTUARIO",null,"CEPITA ","OVEJAS ","DOLORES","EL CAIRO "]
[null,"BARBOSA",null,"REPELON",null,"EL PEÑON ","CHINAVITA","NORCASIA ","SOLITA ","TAMARA ","JAMBALO","LA PAZ ","ISTMINA","MOÑITOS","CARMEN DE CARUPA ",null,null,"ISNOS","VILLANUEVA ","PIJIÑO DEL CARMEN","MAPIRIPAN","CUMBITARA","EL ZULIA ",null,null,null,null,"CERRITO","PALMITO","ESPINAL","EL CERRITO "]
[null,"BELLO",null,"SABANAGRANDE ",null,"HATILLO DE LOBA","CHIQUINQUIRA ","PACORA ","VALPARAISO ","TAURAMENA","LA SIERRA","MANAURE","JURADO ","PLANETA RICA ","CHAGUANI ",null,null,"LA ARGENTINA ",null,"PIVIJAY","MESETAS","EL CHARCO","GRAMALOTE",null,null,null,null,"CHARALA","SAMPUES","FALAN","EL DOVIO "]
[null,"BELMIRA",null,"SABANALARGA",null,"MAGANGUE ","CHIQUIZA ","PALESTINA",null,"TRINIDAD ","LA VEGA","PAILITAS ","LLORO","PUEBLO NUEVO ","CHIA ",null,null,"LA PLATA ",null,"PLATO","PUERTO CONCORDIA ","EL PEÑOL ","HACARI ",null,null,null,null,"CHARTA ","SAN BENITO ABAD","FLANDES","FLORIDA"]
[null,"BETANIA",null,"SANTA LUCIA",null,"MAHATES","CHISCAS","PENSILVANIA",null,"VILLANUEVA ","LOPEZ","PELAYA ","MEDIO ATRATO ","PUERTO ESCONDIDO ","CHIPAQUE ",null,null,"NATAGA ",null,"PUEBLOVIEJO","PUERTO GAITAN","EL ROSARIO ","HERRAN ",null,null,null,null,"CHIMA","SAN JUAN DE BETULIA","FRESNO ","GINEBRA"]
[null,"BETULIA",null,"SANTO TOMAS",null,"MARGARITA","CHITA","RIOSUCIO ",null,"YOPAL","MERCADERES ","PUEBLO BELLO","MEDIO BAUDO","PUERTO LIBERTADOR","CHOACHI",null,null,"NEIVA",null,"REMOLINO ","PUERTO LLERAS","EL TABLON DE GOMEZ ","LA ESPERANZA ",null,null,null,null,"CHIPATA","SAN MARCOS ","GUAMO","GUACARI"]
[null,"BRICEÑO",null,"SOLEDAD",null,"MARIA LA BAJA","CHITARAQUE ","RISARALDA",null,null,"MIRANDA","RIO DE ORO ","MEDIO SAN JUAN ","PURISIMA ","CHOCONTA ",null,null,"OPORAPA",null,"SABANAS DE SAN ANGEL ","PUERTO LOPEZ ","EL TAMBO ","LA PLAYA ",null,null,null,null,"CIMITARRA","SAN ONOFRE ","HERVEO ","GUADALAJARA DE BUGA"]
[null,"BURITICA ",null,"SUAN ",null,"MOMPOS ","CHIVATA","SALAMINA ",null,null,"MORALES","SAN ALBERTO","NOVITA ","SAHAGUN","COGUA",null,null,"PAICOL ",null,"SALAMINA ","PUERTO RICO","FRANCISCO PIZARRO","LABATECA ",null,null,null,null,"CONCEPCION ","SAN PEDRO","HONDA","JAMUNDI"]
[null,"CACERES",null,"TUBARA ",null,"MONTECRISTO","CHIVOR ","SAMANA ",null,null,"PADILLA","SAN DIEGO","NUQUI","SAN ANDRES SOTAVENTO ","COTA ",null,null,"PALERMO",null,"SAN SEBASTIAN DE BUENAVIS","RESTREPO ","FUNES","LOS PATIOS ",null,null,null,null,"CONFINES ","SANTIAGO DE TOLU ","IBAGUE ","LA CUMBRE"]
[null,"CAICEDO",null,"USIACURI ",null,"MORALES","CIENEGA","SAN JOSE ",null,null,"PAEZ ","SAN MARTIN ","QUIBDO ","SAN ANTERO ","CUCUNUBA ",null,null,"PALESTINA",null,"SAN ZENON","SAN CARLOS DE GUAROA ","GUACHUCAL","LOURDES",null,null,null,null,"CONTRATACION ","SINCE","ICONONZO ","LA UNION "]
[null,"CALDAS ",null,null,null,"NOROSI","COMBITA","SUPIA",null,null,"PATIA","TAMALAMEQUE","RIO IRO","SAN BERNARDO DEL VIENTO","EL COLEGIO ",null,null,"PITAL",null,"SANTA ANA","SAN JUAN DE ARAMA","GUAITARILLA","MUTISCUA ",null,null,null,null,"COROMORO ","SINCELEJO","LERIDA ","LA VICTORIA"]
[null,"CAMPAMENTO ",null,null,null,"PINILLOS ","COPER","VICTORIA ",null,null,"PIAMONTE ","VALLEDUPAR","RIO QUITO","SAN CARLOS ","EL PEÑON ",null,null,"PITALITO ",null,"SANTA BARBARA DE PINTO ","SAN JUANITO","GUALMATAN","OCAÑA",null,null,null,null,"CURITI ","SUCRE","LIBANO ","OBANDO "]
[null,"CAÑASGORDAS",null,null,null,"REGIDOR","CORRALES ","VILLAMARIA ",null,null,"PIENDAMO ",null,"RIOSUCIO ","SAN JOSÉ DE URÉ","EL ROSAL ",null,null,"RIVERA ",null,"SANTA MARTA","SAN MARTIN ","ILES ","PAMPLONA ",null,null,null,null,"EL CARMEN DE CHUCURI ","TOLU VIEJO ","MARIQUITA","PALMIRA"]
[null,"CARACOLI ",null,null,null,"RIO VIEJO","COVARACHIA ","VITERBO",null,null,"POPAYAN",null,"SAN JOSE DEL PALMAR","SAN PELAYO ","FACATATIVA ",null,null,"SALADOBLANCO ",null,"SITIONUEVO ","URIBE","IMUES","PAMPLONITA ",null,null,null,null,"EL GUACAMAYO ",null,"MELGAR ","PRADERA"]
[null,"CARAMANTA",null,null,null,"SAN CRISTOBAL","CUBARA ",null,null,null,"PUERTO TEJADA",null,"SIPI ","TIERRALTA","FOMEQUE",null,null,"SAN AGUSTIN",null,"TENERIFE ","VILLAVICENCIO","IPIALES","PUERTO SANTANDER ",null,null,null,null,"EL PEÑON ",null,"MURILLO","RESTREPO "]
[null,"CAREPA ",null,null,null,"SAN ESTANISLAO ","CUCAITA",null,null,null,"PURACE ",null,"TADO ","TUCHÍN","FOSCA",null,null,"SANTA MARIA",null,"ZAPAYAN","VISTAHERMOSA ","LA CRUZ","RAGONVALIA ",null,null,null,null,"EL PLAYON",null,"NATAGAIMA","RIOFRIO"]
[null,"CAROLINA ",null,null,null,"SAN FERNANDO ","CUITIVA",null,null,null,"ROSAS",null,"UNGUIA ","VALENCIA ","FUNZA",null,null,"SUAZA",null,"ZONA BANANERA",null,"LA FLORIDA ","SALAZAR",null,null,null,null,"ENCINO ",null,"ORTEGA ","ROLDANILLO "]
[null,"CAUCASIA ",null,null,null,"SAN JACINTO","DUITAMA",null,null,null,"SAN SEBASTIAN",null,"UNION PANAMERICANA ",null,"FUQUENE",null,null,"TARQUI ",null,null,null,"LA LLANADA ","SAN CALIXTO",null,null,null,null,"ENCISO ",null,"PALOCABILDO","SAN PEDRO"]
[null,"CHIGORODO",null,null,null,"SAN JACINTO DEL CAUCA","EL COCUY ",null,null,null,"SANTA ROSA ",null,null,null,"FUSAGASUGA ",null,null,"TELLO",null,null,null,"LA TOLA","SAN CAYETANO ",null,null,null,null,"FLORIAN",null,"PIEDRAS","SANTIAGO DE CALI "]
[null,"CISNEROS ",null,null,null,"SAN JUAN NEPOMUCENO","EL ESPINO",null,null,null,"SANTANDER DE QUILICHAO ",null,null,null,"GACHALA",null,null,"TERUEL ",null,null,null,"LA UNION ","SANTIAGO ",null,null,null,null,"FLORIDABLANCA",null,"PLANADAS ","SEVILLA"]
[null,"CIUDAD BOLIVAR",null,null,null,"SAN MARTIN DE LOBA ","FIRAVITOBA ",null,null,null,"SILVIA ",null,null,null,"GACHANCIPA ",null,null,"TESALIA",null,null,null,"LEIVA","SARDINATA",null,null,null,null,"GALAN",null,"PRADO","TORO "]
[null,"COCORNA",null,null,null,"SAN PABLO","FLORESTA ",null,null,null,"SOTARA ",null,null,null,"GACHETA",null,null,"TIMANA ",null,null,null,"LINARES","SILOS",null,null,null,null,"GAMBITA",null,"PURIFICACION ","TRUJILLO "]
[null,"CONCEPCION ",null,null,null,"SANTA CATALINA ","GACHANTIVA ",null,null,null,"SUAREZ ",null,null,null,"GAMA ",null,null,"VILLAVIEJA ",null,null,null,"LOS ANDES","TEORAMA",null,null,null,null,"GIRON",null,"RIOBLANCO","TULUA"]
[null,"CONCORDIA",null,null,null,"SANTA ROSA ","GAMEZA ",null,null,null,"SUCRE",null,null,null,"GIRARDOT ",null,null,"YAGUARA",null,null,null,"MAGÜI","TIBU ",null,null,null,null,"GUACA",null,"RONCESVALLES ","ULLOA"]
[null,"COPACABANA ",null,null,null,"SANTA ROSA DEL SUR ","GARAGOA",null,null,null,"TIMBIO ",null,null,null,"GRANADA",null,null,null,null,null,null,"MALLAMA","TOLEDO ",null,null,null,null,"GUADALUPE",null,"ROVIRA ","VERSALLES"]
[null,"DABEIBA",null,null,null,"SIMITI ","GUACAMAYAS ",null,null,null,"TIMBIQUI ",null,null,null,"GUACHETA ",null,null,null,null,null,null,"MOSQUERA ","VILLA CARO ",null,null,null,null,"GUAPOTA",null,"SALDAÑA","VIJES"]
[null,"DON MATIAS ",null,null,null,"SOPLAVIENTO","GUATEQUE ",null,null,null,"TORIBIO",null,null,null,"GUADUAS",null,null,null,null,null,null,"NARIÑO ","VILLA DEL ROSARIO",null,null,null,null,"GUAVATA",null,"SAN ANTONIO","YOTOCO "]
[null,"EBEJICO",null,null,null,"TALAIGUA NUEVO ","GUAYATA",null,null,null,"TOTORO ",null,null,null,"GUASCA ",null,null,null,null,null,null,"OLAYA HERRERA",null,null,null,null,null,"GÜEPSA ",null,"SAN LUIS ","YUMBO"]
[null,"EL BAGRE ",null,null,null,"TIQUISIO ","GÜICAN ",null,null,null,"VILLA RICA ",null,null,null,"GUATAQUI ",null,null,null,null,null,null,"OSPINA ",null,null,null,null,null,"HATO ",null,"SANTA ISABEL ","ZARZAL "]
[null,"EL CARMEN DE VIBORAL ",null,null,null,"TURBACO","IZA",null,null,null,null,null,null,null,"GUATAVITA",null,null,null,null,null,null,"PASTO",null,null,null,null,null,"JESUS MARIA",null,"SUAREZ "]
[null,"EL SANTUARIO ",null,null,null,"TURBANA","JENESANO ",null,null,null,null,null,null,null,"GUAYABAL DE SIQUIMA",null,null,null,null,null,null,"POLICARPA",null,null,null,null,null,"JORDAN ",null,"VALLE DE SAN JUAN"]
[null,"ENTRERRIOS ",null,null,null,"VILLANUEVA ","JERICO ",null,null,null,null,null,null,null,"GUAYABETAL ",null,null,null,null,null,null,"POTOSI ",null,null,null,null,null,"LA BELLEZA ",null,"VENADILLO"]
[null,"ENVIGADO ",null,null,null,"ZAMBRANO ","LA CAPILLA ",null,null,null,null,null,null,null,"GUTIERREZ",null,null,null,null,null,null,"PROVIDENCIA",null,null,null,null,null,"LA PAZ ",null,"VILLAHERMOSA "]
[null,"FREDONIA ",null,null,null,null,"LA UVITA ",null,null,null,null,null,null,null,"JERUSALEN",null,null,null,null,null,null,"PUERRES",null,null,null,null,null,"LANDAZURI",null,"VILLARRICA "]
[null,"FRONTINO ",null,null,null,null,"LA VICTORIA",null,null,null,null,null,null,null,"JUNIN",null,null,null,null,null,null,"PUPIALES ",null,null,null,null,null,"LEBRIJA"]
[null,"GIRALDO",null,null,null,null,"LABRANZAGRANDE ",null,null,null,null,null,null,null,"LA CALERA",null,null,null,null,null,null,"RICAURTE ",null,null,null,null,null,"LOS SANTOS "]
[null,"GIRARDOTA",null,null,null,null,"MACANAL",null,null,null,null,null,null,null,"LA MESA",null,null,null,null,null,null,"ROBERTO PAYAN",null,null,null,null,null,"MACARAVITA "]
[null,"GOMEZ PLATA",null,null,null,null,"MARIPI ",null,null,null,null,null,null,null,"LA PALMA ",null,null,null,null,null,null,"SAMANIEGO",null,null,null,null,null,"MALAGA "]
[null,"GRANADA",null,null,null,null,"MIRAFLORES ",null,null,null,null,null,null,null,"LA PEÑA",null,null,null,null,null,null,"SAN BERNARDO ",null,null,null,null,null,"MATANZA"]
[null,"GUADALUPE",null,null,null,null,"MONGUA ",null,null,null,null,null,null,null,"LA VEGA",null,null,null,null,null,null,"SAN LORENZO",null,null,null,null,null,"MOGOTES"]
[null,"GUARNE ",null,null,null,null,"MONGUI ",null,null,null,null,null,null,null,"LENGUAZAQUE",null,null,null,null,null,null,"SAN PABLO",null,null,null,null,null,"MOLAGAVITA "]
[null,"GUATAPE",null,null,null,null,"MONIQUIRA",null,null,null,null,null,null,null,"MACHETA",null,null,null,null,null,null,"SAN PEDRO DE CARTAGO ",null,null,null,null,null,"OCAMONTE "]
[null,"HELICONIA",null,null,null,null,"MOTAVITA ",null,null,null,null,null,null,null,"MADRID ",null,null,null,null,null,null,"SANDONA",null,null,null,null,null,"OIBA "]
[null,"HISPANIA ",null,null,null,null,"MUZO ",null,null,null,null,null,null,null,"MANTA",null,null,null,null,null,null,"SANTA BARBARA",null,null,null,null,null,"ONZAGA "]
[null,"ITAGUI ",null,null,null,null,"NOBSA",null,null,null,null,null,null,null,"MEDINA ",null,null,null,null,null,null,"SANTACRUZ",null,null,null,null,null,"PALMAR "]
[null,"ITUANGO",null,null,null,null,"NUEVO COLON",null,null,null,null,null,null,null,"MOSQUERA ",null,null,null,null,null,null,"SAPUYES",null,null,null,null,null,"PALMAS DEL SOCORRO "]
[null,"JARDIN ",null,null,null,null,"OICATA ",null,null,null,null,null,null,null,"NARIÑO ",null,null,null,null,null,null,"TAMINANGO",null,null,null,null,null,"PARAMO "]
[null,"JERICO ",null,null,null,null,"OTANCHE",null,null,null,null,null,null,null,"NEMOCON",null,null,null,null,null,null,"TANGUA ",null,null,null,null,null,"PIEDECUESTA"]
[null,"LA CEJA",null,null,null,null,"PACHAVITA",null,null,null,null,null,null,null,"NILO ",null,null,null,null,null,null,"TUMACO ",null,null,null,null,null,"PINCHOTE "]
[null,"LA ESTRELLA",null,null,null,null,"PAEZ ",null,null,null,null,null,null,null,"NIMAIMA",null,null,null,null,null,null,"TUQUERRES",null,null,null,null,null,"PUENTE NACIONAL"]
[null,"LA MAGDALENA ",null,null,null,null,"PAIPA",null,null,null,null,null,null,null,"NOCAIMA",null,null,null,null,null,null,"YACUANQUER ",null,null,null,null,null,"PUERTO PARRA "]
[null,"LA PINTADA ",null,null,null,null,"PAJARITO ",null,null,null,null,null,null,null,"PACHO",null,null,null,null,null,null,null,null,null,null,null,null,"PUERTO WILCHES "]
[null,"LA UNION ",null,null,null,null,"PANQUEBA ",null,null,null,null,null,null,null,"PAIME",null,null,null,null,null,null,null,null,null,null,null,null,"RIONEGRO "]
[null,"LIBORINA ",null,null,null,null,"PAUNA",null,null,null,null,null,null,null,"PANDI",null,null,null,null,null,null,null,null,null,null,null,null,"SABANA DE TORRES "]
[null,"MACEO",null,null,null,null,"PAYA ",null,null,null,null,null,null,null,"PARATEBUENO",null,null,null,null,null,null,null,null,null,null,null,null,"SAN ANDRES "]
[null,"MARINILLA",null,null,null,null,"PAZ DE RIO ",null,null,null,null,null,null,null,"PASCA",null,null,null,null,null,null,null,null,null,null,null,null,"SAN BENITO "]
[null,"MEDELLIN",null,null,null,null,"PESCA",null,null,null,null,null,null,null,"PUERTO SALGAR",null,null,null,null,null,null,null,null,null,null,null,null,"SAN GIL"]
[null,"MONTEBELLO ",null,null,null,null,"PISBA",null,null,null,null,null,null,null,"PULI ",null,null,null,null,null,null,null,null,null,null,null,null,"SAN JOAQUIN"]
[null,"MURINDO",null,null,null,null,"PUERTO BOYACA",null,null,null,null,null,null,null,"QUEBRADANEGRA",null,null,null,null,null,null,null,null,null,null,null,null,"SAN JOSE DE MIRANDA"]
[null,"MUTATA ",null,null,null,null,"QUIPAMA",null,null,null,null,null,null,null,"QUETAME",null,null,null,null,null,null,null,null,null,null,null,null,"SAN MIGUEL "]
[null,"NARIÑO ",null,null,null,null,"RAMIRIQUI",null,null,null,null,null,null,null,"QUIPILE",null,null,null,null,null,null,null,null,null,null,null,null,"SAN VICENTE DE CHUCURI "]
[null,"NECHI",null,null,null,null,"RAQUIRA",null,null,null,null,null,null,null,"RICAURTE ",null,null,null,null,null,null,null,null,null,null,null,null,"SANTA BARBARA"]
[null,"NECOCLI",null,null,null,null,"RONDON ",null,null,null,null,null,null,null,"SAN ANTONIO DEL TEQUENDAMA",null,null,null,null,null,null,null,null,null,null,null,null,"SANTA HELENA DEL OPON"]
[null,"OLAYA",null,null,null,null,"SABOYA ",null,null,null,null,null,null,null,"SAN BERNARDO ",null,null,null,null,null,null,null,null,null,null,null,null,"SIMACOTA "]
[null,"PEÑOL",null,null,null,null,"SACHICA",null,null,null,null,null,null,null,"SAN CAYETANO ",null,null,null,null,null,null,null,null,null,null,null,null,"SOCORRO"]
[null,"PEQUE",null,null,null,null,"SAMACA ",null,null,null,null,null,null,null,"SAN FRANCISCO",null,null,null,null,null,null,null,null,null,null,null,null,"SUAITA "]
[null,"PUEBLORRICO",null,null,null,null,"SAN EDUARDO",null,null,null,null,null,null,null,"SAN JUAN DE RIO SECO ",null,null,null,null,null,null,null,null,null,null,null,null,"SUCRE"]
[null,"PUERTO BERRIO",null,null,null,null,"SAN JOSE DE PARE ",null,null,null,null,null,null,null,"SASAIMA",null,null,null,null,null,null,null,null,null,null,null,null,"SURATA "]
[null,"PUERTO TRIUNFO ",null,null,null,null,"SAN LUIS DE GACENO ",null,null,null,null,null,null,null,"SESQUILE ",null,null,null,null,null,null,null,null,null,null,null,null,"TONA "]
[null,"REMEDIOS ",null,null,null,null,"SAN MATEO",null,null,null,null,null,null,null,"SIBATE ",null,null,null,null,null,null,null,null,null,null,null,null,"VALLE DE SAN JOSE"]
[null,"RETIRO ",null,null,null,null,"SAN MIGUEL DE SEMA ",null,null,null,null,null,null,null,"SILVANIA ",null,null,null,null,null,null,null,null,null,null,null,null,"VELEZ"]
[null,"RIONEGRO ",null,null,null,null,"SAN PABLO DE BORBUR",null,null,null,null,null,null,null,"SIMIJACA ",null,null,null,null,null,null,null,null,null,null,null,null,"VETAS"]
[null,"SABANALARGA",null,null,null,null,"SANTA MARIA",null,null,null,null,null,null,null,"SOACHA ",null,null,null,null,null,null,null,null,null,null,null,null,"VILLANUEVA "]
[null,"SABANETA ",null,null,null,null,"SANTA ROSA DE VITERBO",null,null,null,null,null,null,null,"SOPO ",null,null,null,null,null,null,null,null,null,null,null,null,"ZAPATOCA "]
[null,"SALGAR ",null,null,null,null,"SANTA SOFIA",null,null,null,null,null,null,null,"SUBACHOQUE "]
[null,"SAN ANDRES ",null,null,null,null,"SANTANA",null,null,null,null,null,null,null,"SUESCA "]
[null,"SAN CARLOS ",null,null,null,null,"SATIVANORTE",null,null,null,null,null,null,null,"SUPATA "]
[null,"SAN FRANCISCO",null,null,null,null,"SATIVASUR",null,null,null,null,null,null,null,"SUSA "]
[null,"SAN JERONIMO ",null,null,null,null,"SIACHOQUE",null,null,null,null,null,null,null,"SUTATAUSA"]
[null,"SAN JOSE DE LA MONTAÑA ",null,null,null,null,"SOATA",null,null,null,null,null,null,null,"TABIO"]
[null,"SAN JUAN DE URABA",null,null,null,null,"SOCHA",null,null,null,null,null,null,null,"TAUSA"]
[null,"SAN LUIS ",null,null,null,null,"SOCOTA ",null,null,null,null,null,null,null,"TENA "]
[null,"SAN PEDRO",null,null,null,null,"SOGAMOSO ",null,null,null,null,null,null,null,"TENJO"]
[null,"SAN PEDRO DE URABA ",null,null,null,null,"SOMONDOCO",null,null,null,null,null,null,null,"TIBACUY"]
[null,"SAN RAFAEL ",null,null,null,null,"SORA ",null,null,null,null,null,null,null,"TIBIRITA "]
[null,"SAN ROQUE",null,null,null,null,"SORACA ",null,null,null,null,null,null,null,"TOCAIMA"]
[null,"SAN VICENTE",null,null,null,null,"SOTAQUIRA",null,null,null,null,null,null,null,"TOCANCIPA"]
[null,"SANTA BARBARA",null,null,null,null,"SUSACON",null,null,null,null,null,null,null,"TOPAIPI"]
[null,"SANTA ROSA DE OSOS ",null,null,null,null,"SUTAMARCHAN",null,null,null,null,null,null,null,"UBALA"]
[null,"SANTAFE DE ANTIOQUIA",null,null,null,null,"SUTATENZA",null,null,null,null,null,null,null,"UBAQUE "]
[null,"SANTO DOMINGO",null,null,null,null,"TASCO",null,null,null,null,null,null,null,"UNE"]
[null,"SEGOVIA",null,null,null,null,"TENZA",null,null,null,null,null,null,null,"ÚTICA"]
[null,"SONSON ",null,null,null,null,"TIBANA ",null,null,null,null,null,null,null,"VENECIA"]
[null,"SOPETRAN ",null,null,null,null,"TIBASOSA ",null,null,null,null,null,null,null,"VERGARA"]
[null,"TAMESIS",null,null,null,null,"TINJACA",null,null,null,null,null,null,null,"VIANI"]
[null,"TARAZA ",null,null,null,null,"TIPACOQUE",null,null,null,null,null,null,null,"VILLA DE SAN DIEGO DE UBATE"]
[null,"TARSO",null,null,null,null,"TOCA ",null,null,null,null,null,null,null,"VILLAGOMEZ "]
[null,"TITIRIBI ",null,null,null,null,"TOGÜI",null,null,null,null,null,null,null,"VILLAPINZON"]
[null,"TOLEDO ",null,null,null,null,"TOPAGA ",null,null,null,null,null,null,null,"VILLETA"]
[null,"TURBO",null,null,null,null,"TOTA ",null,null,null,null,null,null,null,"VIOTA"]
[null,"URAMITA",null,null,null,null,"TUNJA",null,null,null,null,null,null,null,"YACOPI "]
[null,"URRAO",null,null,null,null,"TUNUNGUA ",null,null,null,null,null,null,null,"ZIPACON"]
[null,"VALDIVIA ",null,null,null,null,"TURMEQUE ",null,null,null,null,null,null,null,"ZIPAQUIRA"]
[null,"VALPARAISO ",null,null,null,null,"TUTA "]
[null,"VEGACHI",null,null,null,null,"TUTAZA "]
[null,"VENECIA",null,null,null,null,"UMBITA "]
[null,"VIGIA DEL FUERTE ",null,null,null,null,"VENTAQUEMADA "]
[null,"YALI ",null,null,null,null,"VILLA DE LEYVA "]
[null,"YARUMAL",null,null,null,null,"VIRACACHA"]
[null,"YOLOMBO",null,null,null,null,"ZETAQUIRA"]
[null,"YONDO"]
[null,"ZARAGOZA "]

{"sheet":"Regional","index":3,"n_rows":35,"n_cols":1,"rows_kept":35,"cut":false,"hidden":true,"merged":[]}
["DEPTO"]
["AMAZONAS"]
["ANTIOQUIA"]
["ARAUCA"]
["ATLÁNTICO"]
["BOGOTA D.C."]
["BOLÍVAR"]
["BOYACÁ"]
["CALDAS"]
["CAQUETÁ"]
["CASANARE"]
["CAUCA"]
["CESAR"]
["CHOCÓ"]
["CÓRDOBA"]
["CUNDINAMARCA"]
["GUAINÍA"]
["GUAVIARE"]
["HUILA"]
["LA GUAJIRA"]
["MAGDALENA"]
["META"]
["NARIÑO"]
["NORTE DE SANTANDER"]
["PUTUMAYO"]
["QUINDIO"]
["RISARALDA"]
["SAN ANDRÉS"]
["SANTANDER"]
["SUCRE"]
["TOLIMA"]
["VALLE DEL CAUCA"]
["VAUPÉS"]
["VICHADA"]
["EXTRANJERO"]

{"sheet":"Comunidades","index":4,"n_rows":76,"n_cols":23,"rows_kept":76,"cut":false,"hidden":true,"merged":[]}
["Cesar_Becerril_C","CesarAGUSTIN_CODAZZI","CesarEl_Copey ","CesarPueblo_Bello","CesarValledupar","LA_GUAJIRABecerril","LA_GUAJIRADibulla","LA_GUAJIRAEl_Molino","LA_GUAJIRARiohacha","LA_GUAJIRASan_Juan_Del_Cesar","MAGDALENAAracataca ","MAGDALENACienaga","MAGDALENAFUNDACION","MAGDALENASanta_Marta",null,null,null,"Comunidad_MAI","Pueblo","Departamento","Municipio","Resguardo","Cuenca"]
["Ciudadela","Familias Desplazadas","Gunkey (Chimila)","Businchama","Seykun","Diferentes Barrios En Becerril","Aty Gumuke","Dhikumke","Gonawimake","Achintukua","Dwanawimaku ","Busingekun","Bunkwamuke ","Bunkwimake",null,null,null,"Kuntinurwa","Arhuaco","Magdalena","Fundación","Resguardo Kogui Malayo Arhuaco-Cabildo Arhuaco Magdalena Guajira","Rio Fundación"]
[null,null,"Kwagueka (Garupal)","Dunawa ","Gun Aruwun ",null,"Awizhaka","Mamawuanke","Mamarongui/ Momake","Barcino","Gunmako ","Seygunteyrwa ","Gunseyteynaruwun ","Jiwa ",null,null,null,"Murillo","Kankuamo","Cesar","Valledupar","Resguardo Indígena Kankuamo","Rio Seco"]
[null,null,"Makugeka ","Gamuke","Birwa ",null,"Bunkuanezhaka","Shekawuanke ","Nulimake","El Caney","Jechikin","Aldusabagui","Gwamoni","Kutunsama ",null,null,null,"Rancho De La Goya ","Kankuamo","Cesar","Valledupar","Resguardo Indígena Kankuamo","Rio Candela"]
[null,null,null,"Gunchukwa","Sey umuke (Tamakal)",null,"Bunkwangueka",null,"Yangumake","El Molino","Serankwa ","Awitana (Cherwua Bajo)","Jeywin ","Seykwanamuke ",null,null,null,"Dumingueka","Kogui","La Guajira","Dibulla","Resguardo Kogui Malayo Arhuaco","Santa Clara"]
[null,null,null,"Jewrwa","Umuriwun ",null,"Dumingueka",null,"Abowimake","Gostenke ",null,"Cherwua (Alto)","Jwinariwun ","Ableizhi",null,null,null,"Corual ","Wiwa","La Guajira","Dibulla ","Resguardo Kogui Malayo Arhuaco","Río Jerez"]
[null,null,null,"Jimain","Arwamake ",null,"Jumandita",null,"Bunkuamake","La Loma",null,"Mankuaka (San Antonio)","Ko’Chukwa ","Bunkuamake",null,null,null,"Gomake","Wiwa","La Guajira","Dibulla ","Resguardo Kogui Malayo Arhuaco","Río Jerez"]
[null,null,null,"Mamarwa ","Ikarwa ",null,"Kasakumake",null,"Limon","La Peña De Los Indios ",null,"Munkuawinaka (La Esperanza)","Kunkawarwa","Chivilongui"]
[null,null,null,"Mañakan ","Izrwa ",null,"Kuizhimake",null,"Shetuabinkue","Limoncito",null,"Palestina","Kuntinurwa","Coquitos"]
[null,null,null,"Nabusimake","Jugaka ",null,"Luaka",null,null,"Machin",null,"Sebanzhi","Muñimuke ","Duanamake"]
[null,null,null,"Simunurwa","Jukwinchukwa ",null,"Maldaka",null,null,"Mamayan",null,"Sekuindua","Seynurwa ","Jiwata"]
[null,null,null,"Aty Kwakumuke","Jwano'Swi ",null,"Nimaizhi",null,null,"Marocaso",null,"Sengulaka (San Javier)","Singuney ","Mulkuakungui"]
[null,null,null,"Gunkeyruwun ","Seynimin ",null,"Nuanezhaka/Malezhaka/Wanizhaka",null,null,"Piñoncito",null,"Setaminaka (Uranio)","umuke","Mutenzhi"]
[null,null,null,"Gunnarinchukwa","Sogrome ",null,"Nubizhaka",null,null,"Potrerito",null,"Seyayuman","Windiwa ","Taminaka"]
[null,null,null,"Karwa","Timaka ",null,"Semineizhi",null,null,"Rincona",null,null,null,"Uldezhaka"]
[null,null,null,"Kurinha","Aguas Blancas",null,"Sewiaka",null,null,"Sabana De Joaquina",null,null,null,"Uluezhi"]
[null,null,null,"Kwanimun","Atanquez",null,"Tungueka",null,null,"Sabana Grande",null,null,null,"Zamangueka"]
[null,null,null,"Mamankana","Azucar Buena",null,"Ulimaka",null,null,"San Juan"]
[null,null,null,"Sey Arukwingumu ","Canta Rana ",null,"Waldiumake",null,null,"Siminke"]
[null,null,null,"Sey Ati Gun Aruwun ","Chemesquemena",null,"Zhinkuamero",null,null,"Teyumei "]
[null,null,null,"Sey Umuke La Montaña","Cominos De Tamacal",null,"Corual ",null,null,"Ulago"]
[null,null,null,"Seykurin","El Jabo",null,"Gomake",null,null,"Villa Nueva"]
[null,null,null,"Zikuta","El Mamon ",null,"Seyumake"]
[null,null,null,"El Cairo","El Oasis",null,"Sabezhaka"]
[null,null,null,"El Hondo","El Palmar",null,"Shinawimake/Chingale"]
[null,null,null,"El Triunfo ","Guatapuri",null,"Auñwiaka"]
[null,null,null,"La Honda ","La Cuba"]
[null,null,null,"Montes Grandes","La Esperanza "]
[null,null,null,"Pueblo Bello","La Mesa"]
[null,null,null,"San Quintin ","La Mina"]
[null,null,null,"Tranquilidad","La Vega"]
[null,null,null,null,"Las Flores "]
[null,null,null,null,"Las Mariposas "]
[null,null,null,null,"Las Raices"]
[null,null,null,null,"Los Corazones "]
[null,null,null,null,"Los Haticos"]
[null,null,null,null,"Los Laureles"]
[null,null,null,null,"Maria Angola "]
[null,null,null,null,"Marquetalia "]
[null,null,null,null,"Mojao"]
[null,null,null,null,"Monte Cristo "]
[null,null,null,null,"Murillo"]
[null,null,null,null,"Ponton "]
[null,null,null,null,"Ramalito "]
[null,null,null,null,"Rancho De La Goya "]
[null,null,null,null,"Rio Seco"]
[null,null,null,null,"Sabanitas "]
[null,null,null,null,"San Martin "]
[null,null,null,null,"Santa Tirsa "]
[null,null,null,null,"Tierras Nuevas"]
[null,null,null,null,"Valencia"]
[null,null,null,null,"Valledupar "]
[null,null,null,null,"Villa Germania "]
[null,null,null,null,"Awingui"]
[null,null,null,null,"Machukumake (San Jose Maruamake)"]
[null,null,null,null,"Sarachui"]
[null,null,null,null,"Sinkaka"]
[null,null,null,null,"Setay bunkuangueka/Suldibaka"]
[null,null,null,null,"Auyamal"]
[null,null,null,null,"Bernaka"]
[null,null,null,null,"Cherua"]
[null,null,null,null,"Conchurua"]
[null,null,null,null,"Dungakare "]
[null,null,null,null,"El Cerro"]
[null,null,null,null,"Minas De Iracal"]
[null,null,null,null,"Murruanke"]
[null,null,null,null,"Piedra Lisa"]
[null,null,null,null,"Pozo De Humo"]
[null,null,null,null,"Rancho La Golla "]
[null,null,null,null,"Rongoy "]
[null,null,null,null,"Sabana Higueron "]
[null,null,null,null,"Surimena"]
[null,null,null,null,"Tzeyumake"]
[null,null,null,null,"Zetuyaman"]
[null,null,null,null,"Duanakshui"]
[null,null,null,null,"San Juan"]

{"sheet":"Listas","index":5,"n_rows":166,"n_cols":50,"rows_kept":166,"cut":false,"hidden":true,"merged":[]}
["Sexo","Identificación","Autocenso","Parentesco jefe ","Estado Civil","Roles en la comunidad","Limitantes","Seguridad Social","Enfermedad  30 días","Acudir a IPS","Atendieron el IPS","Acudir al médico tradicional","Atención en médico tradicional","¿Dónde o con quién permanece … durante la mayor parte del tiempo entre semana?","SI_NO","SI_NO_NOAPLICA","¿Si asiste a un HC, JI u otro servicio de cuidado, dónde se encuentra ubicado?","Nivel Educativo","¿Cuál fue su actividad principal el último mes?","¿De qué actividades provinieron sus ingresos en el último mes?","Programas","Cuáles de las siguientes actividades tradicionales conoce usted se realizan en su comunidad y con qué frecuencia las practica:","Con qué frecuencia las practica","¿Cuál es la principal razón por la que NO las practica?:","¿Cuál es la razón principal para no realizar algún tipo de actividad productiva tradicional?","Días","Comunidad_pueblo","Tipo_vivienda","Condiciones_vivienda","Dias_semans","Hogar","Tipo_sanitario","Ubicación_sanitario","Sanitario_es","Agua_consumo","Agua_beber","Manejo_residuos","Preparan_alimentos","Cocina_es","Energia_utilizan","Tempo_habitando","Eventos","Tamaño_area","Porcentajes","No_interesa","Tamaño_area_hect","Condiciones","Sistema_Semillas","Nivel","Institucion_educativa"]
["1. Hombre","1. Registro civil ","1. Si ","1. Jefe del Grupo Familiar","1. Unión libre ","1. Mamo ","Sí","1. Contributivo ","1. Sí","1. Sí","1. Sí","1. Sí","1. Sí","1. Asiste a un hogar comunitario, jardín o centro de desarrollo infantil o colegio","1. Sí","1. Sí","1. En la comunidad","1. Ninguno","1. Trabajar","1. Agricultura/Cría de animales","1. Familias en Acción","1. Danza/ baile","1. Siempre","1. No le interesa","1. No le interesa",1,"TUNGUEKA","1. Tradicional indígena","1. Excelente",1,"1. En arriendo o subarriendo","1. Con conexión a alcantarillado","1. Dentro de la vivienda","1. De uso exclusivo de este hogar","1. Acueducto","1. La usan tal como la obtienen","1. La recogen los servicios de aseo","1. En un cuarto sólo para cocinar","1. De uso exclusivo de este hogar","1. Leña","1. Menos de 1 año","1. Inundaciones, crecientes o arroyos","1. Menos de 1","1. De 0 a 10 %","1. No le interesa","1. Menos de 0.5 has","1. Excelente","1. Incipiente","1. Mucho","1. Primaria"]
["2. Mujer","2. Tarjeta de identidad ","2. No ","2. Cónyuge / Compañero(a) ","2. Casado ","2. Tegua ","No","2. Especial (fuerzas armadas, Ecopetrol, universidades públicas, magisterio) ","2. No ","2. No ","2. No ","2. No ","2. No ","2. Con su padre o madre en la casa","2. No","2. No","2. En una comunidad vecina a menos de una hora de distancia","2. Preescolar","2. Orientación espiritual","2. Pesca","2. ReSA","2. Lengua / reproducción oral","2. Casi siempre","2. No cree en la importancia de estas actividades","2. No sabe y no hay quién le enseñe",2,"SETAMINAKA (URANIO)","2. No tradicional ","2. Buena",2,"2. Propia, la están pagando","2. Con conexión a pozo séptico","2. Fuera de la vivienda","2. Compartido con hogares de la misma vivienda","2. Pozo con bomba","2. La hierven","2. La entierran","2. En un cuarto usado también para dormir","2. Compartido con hogares de la misma vivienda","2. Electricidad","2. Entre 1 y 5 años","2. Avalanchas, derrumbes o desplazamientos","2. De 1 a 2","2. De 11 a 20 %","2. No cree en la importancia de estas actividades","2. De 0.5 a 1 has","2. Bueno","2. Avanzado","2. Poco","2. Primaria y Secundaria"]
["3. Intersex","3. Cédula de ciudadanía","3. No sabe ","3. Hijo, hijastro, hijo adoptado(a) ","3. Viudo ","3. Saga ",null,"3. Subsidiado (EPS – I, SISBEN) ",null,null,null,null,null,"3. Con su padre o madre en el trabajo",null,"3. No aplica","3. En una comunidad vecina a más de una hora de distancia","3. Básica primaria","3. Buscar trabajo","3. Artesanías","3. Emprendimiento colectivo","3. Centros de memoria","3. A veces","3. No sabe cuándo se realizan","3. No tiene recursos para los materiales",3,"SARACHUI",null,"3. Regular",3,"3. Propia, totalmente pagada","3. Sin conexión a alcantarillado ni pozo séptico",null,"3. Compartido con hogares de otras viviendas","3. Pozo sin bomba, juaguey, manguera por gravedad","3. Le echan cloro","3. La queman","3. En una sala, un comedor","3. Compartido con hogares de otras viviendas","3. Gas natural domiciliario","3. Más de 5 hasta 10 años","3. Terremotos","3. De 2 a 3","3. De 21 a 30 %","3. No sabe cuándo se realizan","3. De 1 a 2 has","3. Regular","3. Concluido","3. Nada","3. No hay"]
[null,"4. Cédula de extranjería",null,"4. Nieto(a) del jefe o su cónyuge ","4. Separado(a), divorciado(a) ","4. Comisario ",null,"4. Ninguna ",null,null,null,null,null,"4. Con la empleada o niñera en la casa",null,null,null,"4. Básica secundaria","4. Estudiar","4. Comercio","4. IRACA","4. Trabajos espirituales","4. Casi nunca","4. Problemas de salud","4. No tiene recursos para los instrumentos (activos)",4,"SEKIYAMAKE",null,"4. Mala",4,"4. Con permiso del propietario","4. Letrina, bajamar",null,null,"4. Agua lluvia","4. Utilizan filtros","4. La tiran a un patio, lote, zanja o baldío","4. En un patio, comedor, enrramada, al aire libre",null,"4. Gas propano (en cilindro o en pipeta)","4. Más de 10 años","4. Incendios","4. Más de 3","4. De 31 a 40 %","4. Problemas de salud","4. De 2 a 5 has","4. Malo"]
[null,"5. DNI ",null,"5. Padre, madre, padrastro, madrastra ","5. Soltero(a) ","5. Fiscal",null,"5. No sabe ",null,null,null,null,null,"5. Al cuidado de un pariente de 18 años o más",null,null,null,"5. Media","5. Oficios del hogar","5. Trabajo con el sector privado","5. TEB","5. Ayu","5. Nunca","5. Distancia hasta los lugares donde se realizan","5. No tiene tiempo",5,"TEYKU BUNKUANEZHAKA",null,null,5,"5. Posesión sin título ocupante de hecho","5. No tiene",null,null,"5. Rio, quebrada, manantial, nacimiento o arroyuelo","5. La decantan, usan filtros naturales","5. La tiran a un rio, quebrada, caño o laguna","5. En ninguna parte, no preparan alimentos",null,"5. Petróleo, gasolina, keroseno, alcohol, cocinol",null,"5. Vendavales, ventarrones, tormentas",null,"5. De 41 a 50 %","5. Distancia hasta los lugares donde se realiza","5. De 5 a 10 has"]
[null,"6. Pasaporte ",null,"6. Hermano(a) ",null,"6. Cabildo ",null,null,null,null,null,null,null,"6. Al cuidado de un pariente menor de 18 años",null,null,null,"6. Técnica, tecnológica","6. Sin actividad","6. Trabajo con el estado","6. Otro(s)","6. Pagamento",null,"6. No puede practicarla",null,6,"MULKUAKUNGUI",null,null,6,"6. Asignación comunitaria",null,null,null,"6. Pila pública, alberca","6. Compran agua embotelladas o en bolsas","6. La recoge un servicio informal (zorra, carreta)",null,null,"6. Carbón mineral",null,"6. Hundimientos de terreno",null,"6. De 51 a 60 %","6. No puede practicarla","6. Más de 10 has"]
[null,"7. Salvoconducto para refugiado ",null,"7. Yerno / Nuera ",null,"7. Secretario ",null,null,null,null,null,null,null,"7. En casa solo",null,null,null,"7. Universitario",null,"7. Trabajo con la comunidad",null,"7. Ceremonias",null,null,null,7,"SHINAWIMAKE (CHINGALE)",null,null,7,"7. Herencia",null,null,null,"7. Carrotanque",null,"7. La eliminan de otra forma",null,null,"7. Ninguno (no cocinan)",null,null,null,"7. De 61 a 70 %"]
[null,"8. Permiso especial de permanencia ",null,"8. Abuelo(a) ",null,"8. Docente ",null,null,null,null,null,null,null,"8. Otro",null,null,null,"8. Posgrado",null,"8. Trabajador de finca, tierra o parcela propia en arriendo aparcería o usufructo",null,"8. Baño con plantas medicinales",null,null,null,8,"NUANEZHAKA (WANIZHAKA)",null,null,null,null,null,null,null,"8. Aguatero",null,null,null,null,null,null,null,null,"8. De 71 a 80 %"]
[null,"9. Certificado del gobernado",null,"9. Suegros ",null,"9. Consejero ",null,null,null,null,null,null,null,null,null,null,null,null,null,"9. Otro",null,"9. Uso de mantas",null,null,null,9,"AUÑWIAKA",null,null,null,null,null,null,null,"9. Agua embotellada o en bolsa",null,null,null,null,null,null,null,null,"9. De 81 a 90 %"]
[null,null,null,"10. Tíos ",null,"10. Miembro ",null,null,null,null,null,null,null,null,null,null,null,null,null,null,null,"10. Prender el fogón",null,null,null,10,"SHINAWIMAKA (COQUITOS)",null,null,null,null,null,null,null,null,null,null,null,null,null,null,null,null,"10. De 91 a 100 %"]
[null,null,null,"11. Sobrinos ",null,"11. Otros ",null,null,null,null,null,null,null,null,null,null,null,null,null,null,null,"11. Bautizo de casas",null,null,null,11,"DUANAMAKE"]
[null,null,null,"12. Primos ",null,"12. No aplica",null,null,null,null,null,null,null,null,null,null,null,null,null,null,null,"12. Alimento tradicional",null,null,null,12,"KUIZHIMAKE"]
[null,null,null,"13. Cuñados ",null,null,null,null,null,null,null,null,null,null,null,null,null,null,null,null,null,"13. La cultura de la salud propia",null,null,null,13,"MUNKUAWINAKA (LA ESPERANZA)"]
[null,null,null,"14. Otros Parientes ",null,null,null,null,null,null,null,null,null,null,null,null,null,null,null,null,null,"14. Tejido",null,null,null,14,"MASHUKUMAKE"]
[null,null,null,"15. No pariente",null,null,null,null,null,null,null,null,null,null,null,null,null,null,null,null,null,"15. Otra(s)",null,null,null,15,"SEBEINZHI (JUKULUE)"]
[null,null,null,null,null,null,null,null,null,null,null,null,null,null,null,null,null,null,null,null,null,null,null,null,null,16,"SEYAYUMAN"]
[null,null,null,null,null,null,null,null,null,null,null,null,null,null,null,null,null,null,null,null,null,null,null,null,null,17,"SEYWIAKA"]
[null,null,null,null,null,null,null,null,null,null,null,null,null,null,null,null,null,null,null,null,null,null,null,null,null,18,"DUMINGUEKA"]
[null,null,null,null,null,null,null,null,null,null,null,null,null,null,null,null,null,null,null,null,null,null,null,null,null,19,"ABLEIZHI"]
[null,null,null,null,null,null,null,null,null,null,null,null,null,null,null,null,null,null,null,null,null,null,null,null,null,20,"MAMAKUNDUA"]
[null,null,null,null,null,null,null,null,null,null,null,null,null,null,null,null,null,null,null,null,null,null,null,null,null,21,"GUEZHAMAKE (MURALLA)"]
[null,null,null,null,null,null,null,null,null,null,null,null,null,null,null,null,null,null,null,null,null,null,null,null,null,22,"BUNKWANGUEKA"]
[null,null,null,null,null,null,null,null,null,null,null,null,null,null,null,null,null,null,null,null,null,null,null,null,null,23,"CHIVILONGUI"]
[null,null,null,null,null,null,null,null,null,null,null,null,null,null,null,null,null,null,null,null,null,null,null,null,null,24,"GONAWIMAKE"]
[null,null,null,null,null,null,null,null,null,null,null,null,null,null,null,null,null,null,null,null,null,null,null,null,null,25,"MALEIZHI"]
[null,null,null,null,null,null,null,null,null,null,null,null,null,null,null,null,null,null,null,null,null,null,null,null,null,26,"ULDEZHAKA"]
[null,null,null,null,null,null,null,null,null,null,null,null,null,null,null,null,null,null,null,null,null,null,null,null,null,27,"WALDIUMAKE"]
[null,null,null,null,null,null,null,null,null,null,null,null,null,null,null,null,null,null,null,null,null,null,null,null,null,28,"ZAMANGUEKA"]
[null,null,null,null,null,null,null,null,null,null,null,null,null,null,null,null,null,null,null,null,null,null,null,null,null,29,"ZHINKUAMERO"]
[null,null,null,null,null,null,null,null,null,null,null,null,null,null,null,null,null,null,null,null,null,null,null,null,null,30,"SABEIZHAKA"]
[null,null,null,null,null,null,null,null,null,null,null,null,null,null,null,null,null,null,null,null,null,null,null,null,null,31,"ALDUSABAGUI"]
[null,null,null,null,null,null,null,null,null,null,null,null,null,null,null,null,null,null,null,null,null,null,null,null,null,null,"AWINGUE"]
[null,null,null,null,null,null,null,null,null,null,null,null,null,null,null,null,null,null,null,null,null,null,null,null,null,null,"AWIZHAKA"]
[null,null,null,null,null,null,null,null,null,null,null,null,null,null,null,null,null,null,null,null,null,null,null,null,null,null,"BUNKUAMAKE"]
[null,null,null,null,null,null,null,null,null,null,null,null,null,null,null,null,null,null,null,null,null,null,null,null,null,null,"BUNKUANEZHAKA"]
[null,null,null,null,null,null,null,null,null,null,null,null,null,null,null,null,null,null,null,null,null,null,null,null,null,null,"GUNGUKLAKA"]
[null,null,null,null,null,null,null,null,null,null,null,null,null,null,null,null,null,null,null,null,null,null,null,null,null,null,"SETAI "]
[null,null,null,null,null,null,null,null,null,null,null,null,null,null,null,null,null,null,null,null,null,null,null,null,null,null,"JIWATA"]
[null,null,null,null,null,null,null,null,null,null,null,null,null,null,null,null,null,null,null,null,null,null,null,null,null,null,"JUMANDITA"]
[null,null,null,null,null,null,null,null,null,null,null,null,null,null,null,null,null,null,null,null,null,null,null,null,null,null,"MULEIZHI ( KASAKUMAKE )"]
[null,null,null,null,null,null,null,null,null,null,null,null,null,null,null,null,null,null,null,null,null,null,null,null,null,null,"KUKDEIZHI"]
[null,null,null,null,null,null,null,null,null,null,null,null,null,null,null,null,null,null,null,null,null,null,null,null,null,null,"ALDUAKA "]
[null,null,null,null,null,null,null,null,null,null,null,null,null,null,null,null,null,null,null,null,null,null,null,null,null,null,"DUNAKSHUI"]
[null,null,null,null,null,null,null,null,null,null,null,null,null,null,null,null,null,null,null,null,null,null,null,null,null,null,"MALDAKA"]
[null,null,null,null,null,null,null,null,null,null,null,null,null,null,null,null,null,null,null,null,null,null,null,null,null,null,"MOMAKE (MAMARONGUI)"]
[null,null,null,null,null,null,null,null,null,null,null,null,null,null,null,null,null,null,null,null,null,null,null,null,null,null,"MANKUAKA (SAN ANTONIO)"]
[null,null,null,null,null,null,null,null,null,null,null,null,null,null,null,null,null,null,null,null,null,null,null,null,null,null,"MUTAINZHI"]
[null,null,null,null,null,null,null,null,null,null,null,null,null,null,null,null,null,null,null,null,null,null,null,null,null,null,"NIMAIZHI"]
[null,null,null,null,null,null,null,null,null,null,null,null,null,null,null,null,null,null,null,null,null,null,null,null,null,null,"NULDIMAKE"]
[null,null,null,null,null,null,null,null,null,null,null,null,null,null,null,null,null,null,null,null,null,null,null,null,null,null,"NUBIZHAKA"]
[null,null,null,null,null,null,null,null,null,null,null,null,null,null,null,null,null,null,null,null,null,null,null,null,null,null,"NABGAKA (PALESTINA)"]
[null,null,null,null,null,null,null,null,null,null,null,null,null,null,null,null,null,null,null,null,null,null,null,null,null,null,"SEKUINDUA"]
[null,null,null,null,null,null,null,null,null,null,null,null,null,null,null,null,null,null,null,null,null,null,null,null,null,null,"SEMINEIZHI"]
[null,null,null,null,null,null,null,null,null,null,null,null,null,null,null,null,null,null,null,null,null,null,null,null,null,null,"SENGULAKA (SAN JAVIER)"]
[null,null,null,null,null,null,null,null,null,null,null,null,null,null,null,null,null,null,null,null,null,null,null,null,null,null,"TAMINAKA"]
[null,null,null,null,null,null,null,null,null,null,null,null,null,null,null,null,null,null,null,null,null,null,null,null,null,null,"ULDIMAKA"]
[null,null,null,null,null,null,null,null,null,null,null,null,null,null,null,null,null,null,null,null,null,null,null,null,null,null,"ULUEIZHI"]
[null,null,null,null,null,null,null,null,null,null,null,null,null,null,null,null,null,null,null,null,null,null,null,null,null,null,"RIO FUNDACIÓN"]
[null,null,null,null,null,null,null,null,null,null,null,null,null,null,null,null,null,null,null,null,null,null,null,null,null,null,"GUATAPURI"]
[null,null,null,null,null,null,null,null,null,null,null,null,null,null,null,null,null,null,null,null,null,null,null,null,null,null,"RIO ARIGUANÍ"]
[null,null,null,null,null,null,null,null,null,null,null,null,null,null,null,null,null,null,null,null,null,null,null,null,null,null,"RIO LOS CLAVOS"]
[null,null,null,null,null,null,null,null,null,null,null,null,null,null,null,null,null,null,null,null,null,null,null,null,null,null,"QUEBRADA CARACOLÍCITO"]
[null,null,null,null,null,null,null,null,null,null,null,null,null,null,null,null,null,null,null,null,null,null,null,null,null,null,"RIO DILUBIO"]
[null,null,null,null,null,null,null,null,null,null,null,null,null,null,null,null,null,null,null,null,null,null,null,null,null,null,"RIO ARIGUANÍ "]
[null,null,null,null,null,null,null,null,null,null,null,null,null,null,null,null,null,null,null,null,null,null,null,null,null,null,"RIO DILUVIO"]
[null,null,null,null,null,null,null,null,null,null,null,null,null,null,null,null,null,null,null,null,null,null,null,null,null,null,"RIO AZÚCAR BUENA "]
[null,null,null,null,null,null,null,null,null,null,null,null,null,null,null,null,null,null,null,null,null,null,null,null,null,null,"RIO GUATAPURI"]
[null,null,null,null,null,null,null,null,null,null,null,null,null,null,null,null,null,null,null,null,null,null,null,null,null,null,"RIO PALOMINO"]
[null,null,null,null,null,null,null,null,null,null,null,null,null,null,null,null,null,null,null,null,null,null,null,null,null,null,"RIO DON DIEGO"]
[null,null,null,null,null,null,null,null,null,null,null,null,null,null,null,null,null,null,null,null,null,null,null,null,null,null,"RIO SEVILLA"]
[null,null,null,null,null,null,null,null,null,null,null,null,null,null,null,null,null,null,null,null,null,null,null,null,null,null,"RIO ARACATACA"]
[null,null,null,null,null,null,null,null,null,null,null,null,null,null,null,null,null,null,null,null,null,null,null,null,null,null,"RANCHO DE LA GOYA"]
[null,null,null,null,null,null,null,null,null,null,null,null,null,null,null,null,null,null,null,null,null,null,null,null,null,null,"MURILLO"]
[null,null,null,null,null,null,null,null,null,null,null,null,null,null,null,null,null,null,null,null,null,null,null,null,null,null,"LOS LAURELES"]
[null,null,null,null,null,null,null,null,null,null,null,null,null,null,null,null,null,null,null,null,null,null,null,null,null,null,"RIO SECO"]
[null,null,null,null,null,null,null,null,null,null,null,null,null,null,null,null,null,null,null,null,null,null,null,null,null,null,"VALLEDUPAR"]
[null,null,null,null,null,null,null,null,null,null,null,null,null,null,null,null,null,null,null,null,null,null,null,null,null,null,"LAS FLORES"]
[null,null,null,null,null,null,null,null,null,null,null,null,null,null,null,null,null,null,null,null,null,null,null,null,null,null,"AGUAS BLANCAS"]
[null,null,null,null,null,null,null,null,null,null,null,null,null,null,null,null,null,null,null,null,null,null,null,null,null,null,"ATÁNQUEZ"]
[null,null,null,null,null,null,null,null,null,null,null,null,null,null,null,null,null,null,null,null,null,null,null,null,null,null,"AZÚCAR BUENA"]
[null,null,null,null,null,null,null,null,null,null,null,null,null,null,null,null,null,null,null,null,null,null,null,null,null,null,"BARRANQUILLA"]
[null,null,null,null,null,null,null,null,null,null,null,null,null,null,null,null,null,null,null,null,null,null,null,null,null,null,"BOGOTÁ"]
[null,null,null,null,null,null,null,null,null,null,null,null,null,null,null,null,null,null,null,null,null,null,null,null,null,null,"CARTAGENA"]
[null,null,null,null,null,null,null,null,null,null,null,null,null,null,null,null,null,null,null,null,null,null,null,null,null,null,"CHEMESQUEMENA"]
[null,null,null,null,null,null,null,null,null,null,null,null,null,null,null,null,null,null,null,null,null,null,null,null,null,null,"EL JABO"]
[null,null,null,null,null,null,null,null,null,null,null,null,null,null,null,null,null,null,null,null,null,null,null,null,null,null,"GUATAPURÍ"]
[null,null,null,null,null,null,null,null,null,null,null,null,null,null,null,null,null,null,null,null,null,null,null,null,null,null,"LA MINA"]
[null,null,null,null,null,null,null,null,null,null,null,null,null,null,null,null,null,null,null,null,null,null,null,null,null,null,"LA PAZ"]
[null,null,null,null,null,null,null,null,null,null,null,null,null,null,null,null,null,null,null,null,null,null,null,null,null,null,"LA VEGA"]
[null,null,null,null,null,null,null,null,null,null,null,null,null,null,null,null,null,null,null,null,null,null,null,null,null,null,"LAS RAÍCES"]
[null,null,null,null,null,null,null,null,null,null,null,null,null,null,null,null,null,null,null,null,null,null,null,null,null,null,"LOS CORAZONES"]
[null,null,null,null,null,null,null,null,null,null,null,null,null,null,null,null,null,null,null,null,null,null,null,null,null,null,"LOS HATICOS"]
[null,null,null,null,null,null,null,null,null,null,null,null,null,null,null,null,null,null,null,null,null,null,null,null,null,null,"MARIANGOLA"]
[null,null,null,null,null,null,null,null,null,null,null,null,null,null,null,null,null,null,null,null,null,null,null,null,null,null,"MOJAO"]
[null,null,null,null,null,null,null,null,null,null,null,null,null,null,null,null,null,null,null,null,null,null,null,null,null,null,"MONTES GRANDES"]
[null,null,null,null,null,null,null,null,null,null,null,null,null,null,null,null,null,null,null,null,null,null,null,null,null,null,"PATILLAL"]
[null,null,null,null,null,null,null,null,null,null,null,null,null,null,null,null,null,null,null,null,null,null,null,null,null,null,"PONTÓN"]
[null,null,null,null,null,null,null,null,null,null,null,null,null,null,null,null,null,null,null,null,null,null,null,null,null,null,"PUEBLO BELLO"]
[null,null,null,null,null,null,null,null,null,null,null,null,null,null,null,null,null,null,null,null,null,null,null,null,null,null,"RAMALITO"]
[null,null,null,null,null,null,null,null,null,null,null,null,null,null,null,null,null,null,null,null,null,null,null,null,null,null,"RIOHACHA"]
[null,null,null,null,null,null,null,null,null,null,null,null,null,null,null,null,null,null,null,null,null,null,null,null,null,null,"SAN JUAN"]
[null,null,null,null,null,null,null,null,null,null,null,null,null,null,null,null,null,null,null,null,null,null,null,null,null,null,"SANTA MARTA"]
[null,null,null,null,null,null,null,null,null,null,null,null,null,null,null,null,null,null,null,null,null,null,null,null,null,null,"VALENCIA"]
[null,null,null,null,null,null,null,null,null,null,null,null,null,null,null,null,null,null,null,null,null,null,null,null,null,null,"VILLA GERMANIA"]
[null,null,null,null,null,null,null,null,null,null,null,null,null,null,null,null,null,null,null,null,null,null,null,null,null,null,"LIMÓN"]
[null,null,null,null,null,null,null,null,null,null,null,null,null,null,null,null,null,null,null,null,null,null,null,null,null,null,"ARIMAKA"]
[null,null,null,null,null,null,null,null,null,null,null,null,null,null,null,null,null,null,null,null,null,null,null,null,null,null,"CHERUA"]
[null,null,null,null,null,null,null,null,null,null,null,null,null,null,null,null,null,null,null,null,null,null,null,null,null,null,"LA TAGUA"]
[null,null,null,null,null,null,null,null,null,null,null,null,null,null,null,null,null,null,null,null,null,null,null,null,null,null,"BARCINO"]
[null,null,null,null,null,null,null,null,null,null,null,null,null,null,null,null,null,null,null,null,null,null,null,null,null,null,"PIEDRA LISA"]
[null,null,null,null,null,null,null,null,null,null,null,null,null,null,null,null,null,null,null,null,null,null,null,null,null,null,"CORUAL "]
[null,null,null,null,null,null,null,null,null,null,null,null,null,null,null,null,null,null,null,null,null,null,null,null,null,null,"GAMɄKE"]
[null,null,null,null,null,null,null,null,null,null,null,null,null,null,null,null,null,null,null,null,null,null,null,null,null,null,"ABOWIMAKE"]
[null,null,null,null,null,null,null,null,null,null,null,null,null,null,null,null,null,null,null,null,null,null,null,null,null,null,"ACHINTUKUA"]
[null,null,null,null,null,null,null,null,null,null,null,null,null,null,null,null,null,null,null,null,null,null,null,null,null,null,"AUYAMAL"]
[null,null,null,null,null,null,null,null,null,null,null,null,null,null,null,null,null,null,null,null,null,null,null,null,null,null,"BERNAKA"]
[null,null,null,null,null,null,null,null,null,null,null,null,null,null,null,null,null,null,null,null,null,null,null,null,null,null,"CIUDADELA"]
[null,null,null,null,null,null,null,null,null,null,null,null,null,null,null,null,null,null,null,null,null,null,null,null,null,null,"CONCHURUA"]
[null,null,null,null,null,null,null,null,null,null,null,null,null,null,null,null,null,null,null,null,null,null,null,null,null,null,"DHIKUMKE"]
[null,null,null,null,null,null,null,null,null,null,null,null,null,null,null,null,null,null,null,null,null,null,null,null,null,null,"DIFERENTES BARRIOS EN BECERRIL"]
[null,null,null,null,null,null,null,null,null,null,null,null,null,null,null,null,null,null,null,null,null,null,null,null,null,null,"DUNGAKARE "]
[null,null,null,null,null,null,null,null,null,null,null,null,null,null,null,null,null,null,null,null,null,null,null,null,null,null,"EL CANEY"]
[null,null,null,null,null,null,null,null,null,null,null,null,null,null,null,null,null,null,null,null,null,null,null,null,null,null,"EL CERRO"]
[null,null,null,null,null,null,null,null,null,null,null,null,null,null,null,null,null,null,null,null,null,null,null,null,null,null,"EL MOLINO"]
[null,null,null,null,null,null,null,null,null,null,null,null,null,null,null,null,null,null,null,null,null,null,null,null,null,null,"FAMILIAS DESPLAZADAS"]
[null,null,null,null,null,null,null,null,null,null,null,null,null,null,null,null,null,null,null,null,null,null,null,null,null,null,"GOSTENKE "]
[null,null,null,null,null,null,null,null,null,null,null,null,null,null,null,null,null,null,null,null,null,null,null,null,null,null,"LA LOMA"]
[null,null,null,null,null,null,null,null,null,null,null,null,null,null,null,null,null,null,null,null,null,null,null,null,null,null,"LA PEÑA DE LOS INDIOS "]
[null,null,null,null,null,null,null,null,null,null,null,null,null,null,null,null,null,null,null,null,null,null,null,null,null,null,"LIMONCITO"]
[null,null,null,null,null,null,null,null,null,null,null,null,null,null,null,null,null,null,null,null,null,null,null,null,null,null,"MACHÍN"]
[null,null,null,null,null,null,null,null,null,null,null,null,null,null,null,null,null,null,null,null,null,null,null,null,null,null,"MAMAWUANKE"]
[null,null,null,null,null,null,null,null,null,null,null,null,null,null,null,null,null,null,null,null,null,null,null,null,null,null,"MAMAYAN"]
[null,null,null,null,null,null,null,null,null,null,null,null,null,null,null,null,null,null,null,null,null,null,null,null,null,null,"MAROCASO"]
[null,null,null,null,null,null,null,null,null,null,null,null,null,null,null,null,null,null,null,null,null,null,null,null,null,null,"MINAS DE IRACAL"]
[null,null,null,null,null,null,null,null,null,null,null,null,null,null,null,null,null,null,null,null,null,null,null,null,null,null,"MURRUANKE"]
[null,null,null,null,null,null,null,null,null,null,null,null,null,null,null,null,null,null,null,null,null,null,null,null,null,null,"PIÑONCITO"]
[null,null,null,null,null,null,null,null,null,null,null,null,null,null,null,null,null,null,null,null,null,null,null,null,null,null,"POTRERITO"]
[null,null,null,null,null,null,null,null,null,null,null,null,null,null,null,null,null,null,null,null,null,null,null,null,null,null,"POZO DE HUMO"]
[null,null,null,null,null,null,null,null,null,null,null,null,null,null,null,null,null,null,null,null,null,null,null,null,null,null,"RANCHO LA GOYA "]
[null,null,null,null,null,null,null,null,null,null,null,null,null,null,null,null,null,null,null,null,null,null,null,null,null,null,"RINCONA"]
[null,null,null,null,null,null,null,null,null,null,null,null,null,null,null,null,null,null,null,null,null,null,null,null,null,null,"RONGOY "]
[null,null,null,null,null,null,null,null,null,null,null,null,null,null,null,null,null,null,null,null,null,null,null,null,null,null,"SABANA DE JOAQUINA"]
[null,null,null,null,null,null,null,null,null,null,null,null,null,null,null,null,null,null,null,null,null,null,null,null,null,null,"SABANA GRANDE"]
[null,null,null,null,null,null,null,null,null,null,null,null,null,null,null,null,null,null,null,null,null,null,null,null,null,null,"SABANA HIGUERÓN "]
[null,null,null,null,null,null,null,null,null,null,null,null,null,null,null,null,null,null,null,null,null,null,null,null,null,null,"SEYUMAKE"]
[null,null,null,null,null,null,null,null,null,null,null,null,null,null,null,null,null,null,null,null,null,null,null,null,null,null,"SHEKAWUANKE "]
[null,null,null,null,null,null,null,null,null,null,null,null,null,null,null,null,null,null,null,null,null,null,null,null,null,null,"SHETUABINKUE"]
[null,null,null,null,null,null,null,null,null,null,null,null,null,null,null,null,null,null,null,null,null,null,null,null,null,null,"SIMINKE"]
[null,null,null,null,null,null,null,null,null,null,null,null,null,null,null,null,null,null,null,null,null,null,null,null,null,null,"SURIMENA"]
[null,null,null,null,null,null,null,null,null,null,null,null,null,null,null,null,null,null,null,null,null,null,null,null,null,null,"TEYUMEI "]
[null,null,null,null,null,null,null,null,null,null,null,null,null,null,null,null,null,null,null,null,null,null,null,null,null,null,"GUAMAKA"]
[null,null,null,null,null,null,null,null,null,null,null,null,null,null,null,null,null,null,null,null,null,null,null,null,null,null,"ASHINA"]
[null,null,null,null,null,null,null,null,null,null,null,null,null,null,null,null,null,null,null,null,null,null,null,null,null,null,"GUATSHIRIMAKE-LA LAGUNA"]
[null,null,null,null,null,null,null,null,null,null,null,null,null,null,null,null,null,null,null,null,null,null,null,null,null,null,"KUNSHAMKE"]
[null,null,null,null,null,null,null,null,null,null,null,null,null,null,null,null,null,null,null,null,null,null,null,null,null,null,"WIMKE-NARANJAL "]
[null,null,null,null,null,null,null,null,null,null,null,null,null,null,null,null,null,null,null,null,null,null,null,null,null,null,"GUIKUMKE-LA CUEVA"]
[null,null,null,null,null,null,null,null,null,null,null,null,null,null,null,null,null,null,null,null,null,null,null,null,null,null,"GOMAKE "]
[null,null,null,null,null,null,null,null,null,null,null,null,null,null,null,null,null,null,null,null,null,null,null,null,null,null,"TZEYUMAKE"]
[null,null,null,null,null,null,null,null,null,null,null,null,null,null,null,null,null,null,null,null,null,null,null,null,null,null,"ULAGO"]
[null,null,null,null,null,null,null,null,null,null,null,null,null,null,null,null,null,null,null,null,null,null,null,null,null,null,"VILLA NUEVA"]
[null,null,null,null,null,null,null,null,null,null,null,null,null,null,null,null,null,null,null,null,null,null,null,null,null,null,"ZETUYAMAN"]
[null,null,null,null,null,null,null,null,null,null,null,null,null,null,null,null,null,null,null,null,null,null,null,null,null,null,"PALO PARAO"]
[null,null,null,null,null,null,null,null,null,null,null,null,null,null,null,null,null,null,null,null,null,null,null,null,null,null,"GOTSEZHL-EL ENCANTO "]
[null,null,null,null,null,null,null,null,null,null,null,null,null,null,null,null,null,null,null,null,null,null,null,null,null,null,"KEMAKUMAKE"]
[null,null,null,null,null,null,null,null,null,null,null,null,null,null,null,null,null,null,null,null,null,null,null,null,null,null,"RUAMANGAGA "]

{"sheet":"Caracterización","index":6,"n_rows":98,"n_cols":13,"rows_kept":98,"cut":false,"hidden":true,"merged":[[0,1,1,10],[2,1,2,10],[33,4,33,8],[44,4,44,8],[5,2,5,3],[11,4,11,8],[18,4,18,8],[31,4,31,8],[32,4,32,8],[23,4,23,8],[25,4,25,8],[26,4,26,8],[30,4,30,8],[24,4,24,8],[29,4,29,8],[22,4,22,8],[3,2,3,9],[45,4,45,8],[46,4,46,8],[47,4,47,8],[48,4,48,8],[36,4,36,8],[37,4,37,8],[38,4,38,8],[39,4,39,8],[40,4,40,8],[5,4,5,8],[12,4,12,8],[13,4,13,8],[14,4,14,8],[15,4,15,8],[7,4,7,8],[8,4,8,8],[16,4,16,8],[17,4,17,8],[19,4,19,8],[20,4,20,8],[68,4,68,8],[49,4,49,8],[50,4,50,8],[51,4,51,8],[52,4,52,8],[53,4,53,8],[60,4,60,8],[54,4,54,8],[21,4,21,8],[69,4,69,8],[70,4,70,8],[76,4,76,8],[35,3,35,8],[73,2,73,3],[61,4,61,8],[62,4,62,8],[58,2,58,3],[75,4,75,8],[65,2,65,3],[55,4,55,8],[41,4,41,8],[42,4,42,8],[43,4,43,8],[67,4,67,8],[97,4,97,8],[92,4,92,8],[93,4,93,8],[94,4,94,8],[89,4,89,8],[91,4,91,8],[90,3,90,8],[77,3,77,8],[95,4,95,8],[96,4,96,8],[80,4,80,8],[86,4,86,8],[87,4,87,8],[81,4,81,8],[82,4,82,8],[83,4,83,8],[84,4,84,8],[88,4,88,8],[85,4,85,8],[78,4,78,8],[79,4,79,8]]}
[null,"\nDirección de Familias, Comunidades y Pueblos\nEncuesta de caracterización poblacional\nModelo de Atención Integral de los Pueblos Indígenas de la Sierra Nevada de Gonawindúa \n"]
[]
[null,"CARACTERIZACIÓN FAMILIAR - Módulo Integrantes Hogares"]
[null,null,"Este instrumento está diseñado para recoger la información detallada de cada uno de los integrantes del hogar. En esta medida se recomienda que quien responda esta encuesta sea una persona de 16 años o más, y que pueda entregar la información de todos los integrantes del hogar. Se sugiere que sea una única persona quien entregue la información de cada uno de los integrantes, no obstante si al momento de realizar la encuesta están todos los integrantes del hogar, el encuestador de común acuerdo podrá realizar la encuesta a cada uno de ellos, siempre y cuando estén en capacidad de responder.\n\nEs importante tener en cuenta que se debe seleccionar al integrante a través del cual se identificará cada hogar durante todo el proceso de implementación del piloto MAI, quien se denominará jefe de grupo familiar y será el primer integrante del hogar a registrar en la herramienta. Una vez registrado al jefe, se deberá realizar el registro de los demás integrantes."]
[]
[null,null,"INFORMACIÓN DEL BENEFICIARIO"]
[]
[null,null,null,"Tipo de Documento *"]
[null,null,null,"Número de Documento *"]
[]
[]
[null,null,null,"Fecha de vinculación (DD/MM/AAAA) *"]
[null,null,null,"Primer Nombre *"]
[null,null,null,"Segundo Nombre"]
[null,null,null,"Primer Apellido *"]
[null,null,null,"Segundo Apellido"]
[null,null,null,"Sexo *"]
[null,null,null,"Fecha de Nacimiento (DD/MM/AAAA)*"]
[null,null,null,"Edad",{"$f":"IF(AND(E12<>\"\",E18<>\"\"),DATEDIF(E18,E12,\"Y\"),\"\")","v":""},null,null,null,null,null,{"$f":"IF(E19<5,\"PI\",\"\")","v":""}]
[null,null,null,"Linaje"]
[null,null,null,"Departamento de Nacimiento *"]
[null,null,null,"Municipio de nacimiento *"]
[null,null,null,"Comunidad de nacimiento (Sierra Nevada de Santa Marta)"]
[null,null,null,"¿Está \nregistrado en el autocenso de la comunidad o pueblo?"]
[null,null,null,"¿Cuál es el parentesco con el cabeza del grupo familiar? *"]
[null,null,null,"Tipo de documento del cabeza del grupo familiar *"]
[null,null,null,"Número de Documento del cabeza del grupo familiar*"]
[]
[]
[null,null,null,"Primer nombre y primer apellido del cabeza del grupo familiar"]
[null,null,null,"Estado Civil",null,null,null,null,null,null,null,{"$f":"IF(E25=\"1.Jefe\",E25,\"\")","v":""}]
[null,null,null,"¿Cuáles son sus roles en la comunidad? Rol 1 *",null,null,null,null,null,null,null,null,{"$f":"IF(E25=\"1.Jefe\",Tipo_Documento,\"\")","v":""}]
[null,null,null,"¿Cuáles son sus roles en la comunidad? Rol 2"]
[null,null,null,"¿Cuáles son sus roles en la comunidad? Rol 3"]
[null,null,null,"SALUD"]
[null,null,null,"Por enfermedad, accidente o de nacimiento ¿tiene limitantes permanentes para?, si no tiene seleccione ninguna *"]
[null,null,null,"    Ninguna"]
[null,null,null,"    Ver"]
[null,null,null,"    Oir"]
[null,null,null,"    Hablar"]
[null,null,null,"    Moverse o caminar por sí mismo"]
[null,null,null,"    Bañarse, vestirse, alimentarse por sí mismo"]
[null,null,null,"    Dificultad para desplazarse fuera de la vivienda sin ayuda o compañía"]
[null,null,null,"    Entender o aprender"]
[null,null,null,"¿A cuál de los siguientes regímenes de seguridad social está afiliado como cotizante o beneficiario? *"]
[null,null,null,"En los ÚLTIMOS 30 DÍAS, ¿… tuvo alguna enfermedad, accidente, problema odontológico o algún otro problema de salud que NO haya implicado hospitalización? *"]
[null,null,null,"   ¿Acudió a una institución prestadora de servicios de salud, puesto de salud,          \n   profesional o promotor de salud?"]
[null,null,null,"   ¿Lo atendieron?"]
[null,null,null,"   ¿Acudió al médico tradicional?"]
[" ",null,null,"   ¿Lo atendieron?"]
[null,null,null,"¿Está embarazada? * "]
[null,null,null,"¿Ha tenido hijos nacidos vivos? *"]
[null,null,null,"Tiene hijos/hijas de 0 a 2 años? "]
[null,null,null,"    ¿La leche materna es parte de la alimentación?"]
[null,null,null,"    ¿Su hijo está entre los 0 y 6 meses?  "]
[null,null,null,"    ¿La alimentación es exclusivamente leche materna? "]
[]
[]
[null,null,"ATENCIÓN A LA PRIMERA INFANCIA (Menores de 5 años)"]
[]
[null,null,null,"¿Dónde o con quién permanece … durante la mayor parte del tiempo entre semana? *"]
[null,null,null,"¿Si asiste a un HC, JI u otro servicio de cuidado, dónde se encuentra ubicado?"]
[null,null,null,"Recibe o toma desayuno o almuerzo donde permanece la mayor parte del tiempo"]
[]
[]
[null,null,"EDUCACIÓN 5 AÑOS O MÁS"]
[]
[null,null,null,"Sabe leer y escribir español"]
[null,null,null,"Sabe hablar, leer y/o escribir lengua propia"]
[null,null,null,"Actualmente estudia (asiste a preescolar, escuela,\ncolegio o universidad)"]
[null,null,null,"¿Cuál es el nivel educativo más alto alcanzado?"]
[]
[]
[null,null,"PERSONAS DE 10 AÑOS O MÁS"]
[]
[null,null,null,"¿Cuál fue su actividad principal el último mes? *",null,null,null,null,null,null,null,{"$f":"MID(E76,1,1)","v":""}]
[null,null,null,"   ¿Obtuvo ingresos por trabajo en el último mes?"]
[null,null,null,"     ¿De qué actividades provinieron sus ingresos en el último mes?"]
[null,null,null,"          Agricultura/Cría de animales"]
[null,null,null,"          Pesca"]
[null,null,null,"          Artesanías"]
[null,null,null,"          Comercio"]
[null,null,null,"          Trabajo con el sector privado"]
[null,null,null,"          Trabajo con el estado"]
[null,null,null,"          Trabajo con la comunidad"]
[null,null,null,"          Trabajador de finca, tierra o parcela propia en arriendo aparcería o \n          usufructo"]
[null,null,null,"          Otro"]
[null,null,null,"     Para desarrollar estas actividades debe permanecer por fuera de la   \n     comunidad"]
[null,null,null,"     Pensando en el último año ¿cuántos días debe permanecer por fuera de la \n     comunidad para el desarrollo de estas actividades?"]
[null,null,null,"Recibe ingresos de otros hogares o personas residentes en el país"]
[null,null,null,"¿Recibe recursos o participa de alguno de los siguientes programas? (marque todos los que apliquen) *"]
[null,null,null,"   Ninguno"]
[null,null,null,"   Familias en Acción"]
[null,null,null,"   ReSA"]
[null,null,null,"   Emprendimiento colectivo"]
[null,null,null,"   IRACA"]
[null,null,null,"   TEB"]
[null,null,null,"   Otro(s)"]

{"sheet":"Vivienda - Hogar","index":7,"n_rows":55,"n_cols":4,"rows_kept":55,"cut":false,"hidden":true,"merged":[[13,3,13,8],[46,3,46,8],[12,4,12,8],[0,1,1,10],[2,1,2,10],[3,2,3,9],[4,2,4,3],[4,4,4,8],[32,2,32,3],[40,4,40,8],[41,4,41,8],[42,4,42,8],[43,4,43,8],[44,4,44,8],[45,4,45,8],[37,4,37,8],[38,4,38,8],[39,4,39,8],[34,4,34,8],[35,4,35,8],[36,4,36,8],[29,4,29,8],[6,4,6,8],[7,4,7,8],[9,4,9,8],[15,4,15,8],[17,4,17,8],[14,4,14,8],[16,4,16,8],[18,4,18,8],[20,4,20,8],[22,4,22,8],[25,4,25,8],[19,4,19,8],[10,4,10,8],[21,4,21,8],[11,4,11,8],[26,4,26,8],[23,4,23,8],[24,4,24,8],[27,4,27,8],[28,4,28,8],[54,4,54,8],[52,4,52,8],[53,4,53,8],[47,4,47,8],[48,4,48,8],[49,4,49,8],[50,4,50,8],[51,4,51,8]]}
[null,"Dirección de Familias, Comunidades y Pueblos \nEncuesta de caracterización poblacional\nModelo de Atención Integral de los Pueblos Indígenas de la Sierra Nevada de Santa Marta \n"]
[]
[null,"CARACTERIZACIÓN FAMILIAR - Módulo Vivienda y Hogares"]
[null,null,"Este módulo tiene como objetivo registrar la información sobre las condiciones de habitabilidad de la vivienda, el acceso a servicios de los hogares y la relación del hogar con la vivienda. Por ello, se recomienda que quien responda a estas preguntas, si no es el jefe de hogar, sea una persona adulta que tenga conocimiento sobre la vivienda en la que habita.\n\nPara el proceso del registro de información de este módulo, se debe haber registrado a los jefes del grupo familiar en el módulo de Integrantes de Hogares."]
[null,null,"VIVIENDA"]
[]
[null,null,null,"Tipo de documento del jefe de grupo familiar *"]
[null,null,null,"Número de Documento del jefe de grupo familiar *"]
[]
[null,null,null,"Primer nombre y primer apellido jefe del grupo familiar *"]
[null,null,null,"Comunidad a la que pertenece *"]
[null,null,null,"Tipo de vivienda *"]
[null,null,null,"En que condición se encuentra la vivienda "]
[null,null,null,"SERVICIOS *"]
[null,null,null,"   Ninguno"]
[null,null,null,"   ¿Cuenta con servicio de energia electrica ? *"]
[null,null,null,"   ¿Cuantos días a la semana cuenta con servicio de energia electrica?"]
[null,null,null,"   ¿Cuenta con servicio de alcantarillado? *"]
[null,null,null,"   ¿Cuantos días cuenta con servicio de alcantarillado?"]
[null,null,null,"   ¿Cuenta con servicio de gas natural? *"]
[null,null,null,"   ¿Cuantos días cuenta con servicio de gas natural?"]
[null,null,null,"   ¿Cuenta con servicio de acueducto? *"]
[null,null,null,"   ¿Cuantos días cuenta con servicio de acueducto?"]
[null,null,null,"   ¿Cuenta con servicio telefónico? *"]
[null,null,null,"   ¿Cuantos días cuenta con servicio telefónico?"]
[null,null,null,"   ¿Cuenta con servicio de aseo y disposición de residuos? *"]
[null,null,null,"   ¿Cuantos días cuenta con servicio de aseo y disposición de residuos?"]
[null,null,null,"La vivienda ocupada por este hogar es: *"]
[null,null,null,"¿Cuántos cuartos tiene el Hogar (fuego)? *"]
[null,null,null,"¿Cuántos cuartos en la hogar son usados EXCLUSIVAMENTE para dormir? *"]
[]
[]
[null,null,"HOGAR"]
[]
[null,null,null,"¿Qué tipo de sanitario utiliza este hogar? *"]
[null,null,null,"¿Dónde se encuentra el sanitario que utilizan las personas de este hogar?"]
[null,null,null,"El sanitario que utilizan las personas de este hogar es:"]
[null,null,null,"El agua para el consumo o preparación de alimentos la obtienen principalmente de: *"]
[null,null,null,"¿En los días que está disponible el agua el suministro es 24 horas? "]
[null,null,null,"El agua para beber principalmente:"]
[null,null,null,"¿Cómo se manejan los residuos en este hogar?"]
[null,null,null,"¿Tiene donde cocinar los alimentos? *"]
[null,null,null,"¿En dónde preparan los alimentos las personas de este hogar? *"]
[null,null,null,"La cocina o sitio para preparar alimentos es"]
[null,null,null,"¿Qué energía o combustible utiliza principalmente el hogar para cocinar? *"]
[null,null,null,"¿Cuánto tiempo lleva habitando esta vivienda? *"]
[null,null,null,"¿Durante el último año su finca (s) / huertas (s), ha sido afectado por alguno de los siguientes eventos?"]
[null,null,null,"   Ninguno"]
[null,null,null,"   Inundaciones, crecientes o arroyos"]
[null,null,null,"   Avalanchas, derrumbes o desplazamientos"]
[null,null,null,"   Terremotos"]
[null,null,null,"   Incendios"]
[null,null,null,"   Vendavales, ventarrones, tormentas"]
[null,null,null,"   Hundimientos de terreno"]
[null,null,null,"   Otro ¿Cuál?"]

{"sheet":"Horcones","index":8,"n_rows":133,"n_cols":4,"rows_kept":133,"cut":false,"hidden":true,"merged":[[27,4,27,8],[28,4,28,8],[29,4,29,8],[0,1,1,10],[2,1,2,10],[3,2,3,9],[18,4,18,8],[4,2,4,3],[4,4,4,8],[6,4,6,8],[7,4,7,8],[10,4,10,8],[11,4,11,8],[12,4,12,8],[13,4,13,8],[14,4,14,8],[16,4,16,8],[17,4,17,8],[15,4,15,8],[19,4,19,8],[25,4,25,8],[26,4,26,8],[21,4,21,8],[22,4,22,8],[63,4,63,8],[64,4,64,8],[30,4,30,8],[31,4,31,8],[33,4,33,8],[34,4,34,8],[35,4,35,8],[36,4,36,8],[37,4,37,8],[38,4,38,8],[39,4,39,8],[60,3,60,8],[41,3,41,8],[32,3,32,8],[54,2,54,3],[81,3,81,8],[23,4,23,8],[20,3,20,8],[24,3,24,8],[78,4,78,8],[51,3,51,8],[48,4,48,8],[49,4,49,8],[42,4,42,8],[43,4,43,8],[44,4,44,8],[45,4,45,8],[46,4,46,8],[47,4,47,8],[65,4,65,8],[66,4,66,8],[67,4,67,8],[40,4,40,8],[57,4,57,8],[58,4,58,8],[59,4,59,8],[61,4,61,8],[62,4,62,8],[56,4,56,8],[79,4,79,8],[80,4,80,8],[70,2,70,3],[75,4,75,8],[76,4,76,8],[74,4,74,8],[72,3,72,8],[73,3,73,8],[77,3,77,8],[101,3,101,8],[87,4,87,8],[88,4,88,8],[90,4,90,8],[91,4,91,8],[82,4,82,8],[83,4,83,8],[84,4,84,8],[86,4,86,8],[85,3,85,8],[89,3,89,8],[98,4,98,8],[99,4,99,8],[100,4,100,8],[92,4,92,8],[94,4,94,8],[95,4,95,8],[96,4,96,8],[93,3,93,8],[97,3,97,8],[121,3,121,8],[107,4,107,8],[108,4,108,8],[110,4,110,8],[111,4,111,8],[102,4,102,8],[103,4,103,8],[104,4,104,8],[106,4,106,8],[105,3,105,8],[109,3,109,8],[118,4,118,8],[119,4,119,8],[120,4,120,8],[112,4,112,8],[114,4,114,8],[115,4,115,8],[116,4,116,8],[113,3,113,8],[117,3,117,8],[132,4,132,8],[127,4,127,8],[128,4,128,8],[130,4,130,8],[131,4,131,8],[122,4,122,8],[123,4,123,8],[124,4,124,8],[126,4,126,8],[125,3,125,8],[129,4,129,8]]}
[null,"\nDirección de Familias, Comunidades y Pueblos\nEncuesta de caracterización poblacional\nModelo de Atención Integral de los Pueblos Indígenas de la Sierra Nevada de Santa Marta \n"]
[]
[null,"CARACTERIZACIÓN FAMILIAR - Módulo Horcones"]
[null,null,"Este módulo tiene como objetivo registrar la información sobre la seguridad alimentaria y nutricional, las formas de organización social y participativas y las prácticas culturales de los hogares. Por ello, se recomienda que quien responda a estas preguntas, si no es el jefe de hogar, sea una persona adulta que tenga conocimiento sobre prácticas de producción, preparación, consumo y comercialización de los alimentos, los sistemas de gobierno y participación propios de la comunidad y las prácticas culturales.\n\nPara el proceso del registro de información de este módulo, se debe haber registrado a los jefes del grupo familiar en el módulo de Integrantes de Hogares"]
[null,null,"SEGUIRIDAD ALIMENTARIA - AUTOCONSUMO"]
[]
[null,null,null,"Tipo de documento del jefe de grupo familiar *"]
[null,null,null,"Número de Documento del jefe de grupo familiar *"]
[]
[]
[null,null,null,"Primer nombre y primer apellido jefe del grupo familiar *"]
[null,null,null,"¿El hogar cuenta con una o varias áreas exclusivas para cultivos de autoconsumo? *"]
[null,null,null,"¿tiene huerta para sembrar y producir los alimentos necesarios?"]
[null,null,null,"¿Se siembran cultivos para autoconsumo o el consumo en el hogar?"]
[null,null,null,"¿Se siembran cultivos para la venta o trueque? "]
[null,null,null,"¿Cómo se hace el riego?"]
[null,null,null,"¿Se crían animales para el autoconsumo? *"]
[null,null,null,"¿Se crían animales para la venta o trueque? *"]
[null,null,null,"¿Se desarrollan actividades de pesca para el autoconsumo? *"]
[null,null,null,"¿Se desarrollan actividades de caza para el autoconsumo? *"]
[null,null,null,"¿Suponiendo una dieta de 3 comidas al día, qué porcentaje de las necesidades de alimentación de la familia atiende el autoconsumo?"]
[null,null,null,"   Comida 1 *"]
[null,null,null,"   Comida 2 *"]
[null,null,null,"   Comida 3 *"]
[null,null,null,"Además del autoconsumo, qué otra forma de acceso tiene a los alimentos y qué parte de la dieta cubren?"]
[null,null,null,"   a. Alimentos de la comunidad "]
[null,null,null,"   b. Compra y/o truque de alimentos "]
[null,null,null,"   c. Alimentos de la institución educativa "]
[null,null,null,"   d. Donaciones "]
[null,null,null,"   e. Otra "]
[null,null,null,"¿Pensando en la próxima semana y suponiendo una dieta de 3 comidas al día, considera que el hogar podrá cubrir la totalidad de sus necesidades alimentarias?"]
[null,null,null,"¿Qué parte NO está cubierto?"]
[null,null,null,"Alimentación en los últimos 12 meses "]
[null,null,null,"   En los últimos 12 meses, por falta de dinero u otros recursos, ¿alguna vez usted \n   se preocupó por que los alimentos se acabaran en su hogar?"]
[null,null,null,"   En los últimos 12 meses, por falta de dinero u otros recursos, ¿alguna vez en su \n   hogar dejaron de tener una alimentación nutritiva y saludable?"]
[null,null,null,"   En los últimos 12 meses, por falta de dinero u otros recursos, ¿alguna vez usted \n   o algún adulto en su hogar tuvo una alimentación basada en poca variedad de \n   alimentos?"]
[null,null,null,"   En los últimos 12 meses, por falta de dinero u otros recursos, ¿alguna vez usted \n   o algún adulto en su hogar dejó de desayunar, almorzar o cenar?"]
[null,null,null,"   En los últimos 12 meses, por falta de dinero u otros recursos, ¿alguna vez usted \n   o algún adulto en su hogar comió menos de lo que debía comer?"]
[null,null,null,"   En los últimos 12 meses, por falta de dinero u otros recursos, ¿alguna vez en su \n   hogar se quedaron sin alimentos?"]
[null,null,null,"   En los últimos 12 meses, por falta de dinero u otros recursos, ¿alguna vez usted \n   o algún adulto en su hogar sintió hambre pero no comió?"]
[null,null,null,"   En los últimos 12 meses, por falta de dinero u otros recursos, ¿alguna vez usted \n   o algún adulto en su hogar solo comió una vez al día o dejó de comer durante \n   todo un  día?"]
[null,null,"   "," Alimentación en su hogar"]
[null,null,null,"   ¿En los últimos 7 días su hogar tuvo que consumir alimentos de menor calidad \n   y/o más baratos?"]
[null,null,null,"   ¿En los últimos 7 días su hogar tuvo que pedir prestado para comprar alimentos \n   o dependió de un familiar, amigo o conocido para adquirir alimentos?"]
[null,null,null,"   ¿En los últimos 7 días, su hogar tuvo que disminuir las porciones de las comidas \n   para que pudiera alcanzar la comida en el hogar?"]
[null,null,null,"   ¿En los últimos 7 días, su hogar tuvo que VENDER o EMPEÑAR algunos bienes \n   o pertenencias de la familia (utensilios, muebles, equipos electrónicos) para \n   adquirir alimentos para el consumo del hogar?"]
[null,null,null,"   ¿En los últimos 7 días, su hogar tuvo que VENDER o EMPEÑAR herramientas, \n   semillas de la próxima cosecha, animales o elementos de trabajo para adquirir \n   alimento para el consumo del hogar?"]
[null,null,null,"   ¿En los últimos 7 días, su hogar tuvo que VENDER algunos animales \n   (gallinas, vacas) fuera del tiempo planeado para comprar o adquirir alimentos \n    para el consumo del hogar?"]
[null,null,null,"   ¿En los últimos 7 días, su hogar tuvo que CONSUMIR las semillas de la próxima \n   cosecha o algún animal de cría porque no había otros o ningún alimento en el \n    hogar?"]
[null,null,null,"   ¿En los últimos 7 días por falta de alimentos, en su hogar contó con ayuda de \n   vecinos o familiares para la alimentación de los niños o niñas de su hogar?"]
[]
[null,null,null,"* Debe responder la persona entrevistada sobre lo que esta considera una alimentación saludable y balanceada. El encuestador no debe suministrar al entrevistado una definición de estos conceptos."]
[]
[]
[null,null,"GOBIERNO PROPIO"]
[]
[null,null,null,"Usted y TODOS los integrantes pertenecientes de su hogar, reconocen a las autoridades tradicionales *"]
[null,null,null,"Usted y TODOS los integrantes pertenecientes de su hogar, Conocen los procedimientos internos de justicia propia *"]
[null,null,null,"Usted y TODOS los integrantes pertenecientes de su hogar, conocen o han recorrido los sitios sagrados *"]
[null,null,null,"Usted o ALGÚN miembro de su hogar Participa en los espacios políticos de toma de decisiones *"]
[null,null,"    ","¿Cuáles de las siguientes razones tiene para no participar de las actividades POLÍTICAS?"]
[null,null,null,"   No les interesa"]
[null,null,null,"   No los representa"]
[null,null,null,"   No es fácil acceder a las autoridades"]
[null,null,null,"   Cuando han participado no han atendido sus necesidades"]
[null,null,null,"   No saben cómo acceder"]
[null,null,null,"   No están autorizados"]
[null,null,null,"   Otra, cuál?"]
[]
[]
[null,null,"REVITALIZACIÓN CULTURAL"]
[]
[null,null,null,"¿Cuáles de las siguientes actividades tradicionales conoce usted se realizan en su comunidad, con qué frecuencia se practican y se obtienen ingresos o alguna actividad comercial?"]
[null,null,null,"  Danza/ baile "]
[null,null,null,"       ¿Con que frecuencia se practica esta actividad? *"]
[null,null,null,"       ¿Cuál es la principal  razón por la que NO se practican o se practican poco?"]
[null,null,null,"      ¿Obtiene ingresos o realiza alguna actividad comercial con esta práctica?"]
[null,null,null,"  Musica "]
[null,null,null,"       ¿Con que frecuencia se practica esta actividad? *"]
[null,null,null,"       ¿Cuál es la principal  razón por la que NO se practican o se practican poco?"]
[null,null,null,"      ¿Obtiene ingresos o realiza alguna actividad comercial con esta práctica?"]
[null,null,null,"  Lengua / reproducción oral "]
[null,null,null,"       ¿Con que frecuencia se practica esta actividad? *"]
[null,null,null,"       ¿Cuál es la principal  razón por la que NO se practican o se practican poco?"]
[null,null,null,"      ¿Obtiene ingresos o realiza alguna actividad comercial con esta práctica?"]
[null,null,null,"  Trabajos espirituales "]
[null,null,null,"       ¿Con que frecuencia se practica esta actividad? *"]
[null,null,null,"       ¿Cuál es la principal  razón por la que NO se practican o se practican poco?"]
[null,null,null,"      ¿Obtiene ingresos o realiza alguna actividad comercial con esta práctica?"]
[null,null,null,"  Recoger ayu "]
[null,null,null,"       ¿Con que frecuencia se practica esta actividad? *"]
[null,null,null,"       ¿Cuál es la principal  razón por la que NO se practican o se practican poco?"]
[null,null,null,"      ¿Obtiene ingresos o realiza alguna actividad comercial con esta práctica?"]
[null,null,null,"  Hacer Pagamento "]
[null,null,null,"       ¿Con que frecuencia se practica esta actividad? *"]
[null,null,null,"       ¿Cuál es la principal  razón por la que NO se practican o se practican poco?"]
[null,null,null,"      ¿Obtiene ingresos o realiza alguna actividad comercial con esta práctica?"]
[null,null,null,"  Baño con plantas medicinales "]
[null,null,null,"       ¿Con que frecuencia se practica esta actividad? *"]
[null,null,null,"       ¿Cuál es la principal  razón por la que NO se practican o se practican poco?"]
[null,null,null,"      ¿Obtiene ingresos o realiza alguna actividad comercial con esta práctica?"]
[null,null,null,"  Uso de traje tradicional "]
[null,null,null,"       ¿Con que frecuencia se practica esta actividad? *"]
[null,null,null,"       ¿Cuál es la principal  razón por la que NO se practican o se practican poco?"]
[null,null,null,"      ¿Obtiene ingresos o realiza alguna actividad comercial con esta práctica?"]
[null,null,null,"  Bautizo de casas "]
[null,null,null,"       ¿Con que frecuencia se practica esta actividad? *"]
[null,null,null,"       ¿Cuál es la principal  razón por la que NO se practican o se practican poco?"]
[null,null,null,"      ¿Obtiene ingresos o realiza alguna actividad comercial con esta práctica?"]
[null,null,null,"  Alimento tradicional "]
[null,null,null,"       ¿Con que frecuencia se practica esta actividad? *"]
[null,null,null,"       ¿Cuál es la principal  razón por la que NO se practican o se practican poco?"]
[null,null,null,"      ¿Obtiene ingresos o realiza alguna actividad comercial con esta práctica?"]
[null,null,null,"  Salud propia "]
[null,null,null,"       ¿Con que frecuencia se practica esta actividad? *"]
[null,null,null,"       ¿Cuál es la principal  razón por la que NO se practican o se practican poco?"]
[null,null,null,"      ¿Obtiene ingresos o realiza alguna actividad comercial con esta práctica?"]
[null,null,null,"  Tejido de mantas"]
[null,null,null,"       ¿Con que frecuencia se practica esta actividad? *"]
[null,null,null,"       ¿Cuál es la principal  razón por la que NO se practican o se practican poco?"]
[null,null,null,"      ¿Obtiene ingresos o realiza alguna actividad comercial con esta práctica?"]
[null,null,null,"  Tejido de mochilas *"]
[null,null,null,"       ¿Con que frecuencia se practica esta actividad? *"]
[null,null,null,"       ¿Cuál es la principal  razón por la que NO se practican o se practican poco?"]
[null,null,null,"      ¿Obtiene ingresos o realiza alguna actividad comercial con esta práctica?"]
[null,null,null,"  Cal (recoger conchas y tostarlas) "]
[null,null,null,"       ¿Con que frecuencia se practica esta actividad? *"]
[null,null,null,"       ¿Cuál es la principal  razón por la que NO se practican o se practican poco?"]
[null,null,null,"      ¿Obtiene ingresos o realiza alguna actividad comercial con esta práctica?"]
[null,null,null,"  Otra(s). ¿Cuál? "]
[null,null,null,"       ¿Con que frecuencia se practica esta actividad?"]
[null,null,null,"       ¿Cuál es la principal  razón por la que NO se practican o se practican poco?"]
[null,null,null,"      ¿Obtiene ingresos o realiza alguna actividad comercial con esta práctica?"]

{"sheet":"Comunitario","index":9,"n_rows":126,"n_cols":5,"rows_kept":126,"cut":false,"hidden":true,"merged":[[72,3,72,8],[79,3,79,8],[120,3,120,8],[98,3,98,8],[53,3,53,8],[113,4,113,8],[114,4,114,8],[110,4,110,8],[111,4,111,8],[112,4,112,8],[101,4,101,8],[102,4,102,8],[103,4,103,8],[97,4,97,8],[108,4,108,8],[109,3,109,8],[99,4,99,8],[76,4,76,8],[77,4,77,8],[78,4,78,8],[73,4,73,8],[74,4,74,8],[75,4,75,8],[66,4,66,8],[0,1,1,10],[2,1,2,10],[3,2,3,9],[88,2,88,3],[87,4,87,8],[86,4,86,8],[97,2,97,3],[108,2,108,3],[85,4,85,8],[89,4,89,8],[90,4,90,8],[91,4,91,8],[92,4,92,8],[93,4,93,8],[80,4,80,8],[81,4,81,8],[82,4,82,8],[83,4,83,8],[84,4,84,8],[88,4,88,8],[104,4,104,8],[105,4,105,8],[94,4,94,8],[100,4,100,8],[122,4,122,8],[123,4,123,8],[124,4,124,8],[125,4,125,8],[115,4,115,8],[116,4,116,8],[117,4,117,8],[118,4,118,8],[119,4,119,8],[121,4,121,8],[67,4,67,8],[68,4,68,8],[69,4,69,8],[70,4,70,8],[71,4,71,8],[52,2,52,3],[62,4,62,8],[64,4,64,8],[61,3,61,8],[65,3,65,8],[45,4,45,8],[38,2,38,3],[43,4,43,8],[46,4,46,8],[47,4,47,8],[48,4,48,8],[49,4,49,8],[40,4,40,8],[55,4,55,8],[41,3,41,8],[54,3,54,8],[29,4,29,8],[30,4,30,8],[31,4,31,8],[32,4,32,8],[33,4,33,8],[34,4,34,8],[63,4,63,8],[20,4,20,8],[22,4,22,8],[23,4,23,8],[25,4,25,8],[26,4,26,8],[27,4,27,8],[28,4,28,8],[44,4,44,8],[56,4,56,8],[57,4,57,8],[58,4,58,8],[59,4,59,8],[60,4,60,8],[39,4,39,8],[42,4,42,8],[35,4,35,8],[24,3,24,8],[4,2,4,3],[4,4,4,8],[10,4,10,8],[6,4,6,8],[18,4,18,8],[19,4,19,8],[21,4,21,8],[8,4,8,8],[9,4,9,8],[14,4,14,8],[15,4,15,8],[16,4,16,8],[17,4,17,8],[7,4,7,8],[11,4,11,8],[13,4,13,8]]}
[null,"\nDirección de Familias, Comunidades y Pueblos\nEncuesta de caracterización poblacional\nModelo de Atención Integral de los Pueblos Indígenas de la Sierra Nevada de Santa Marta \n"]
[]
[null,"Modulo Comunitario"]
[null,null,"Esta encuesta tiene como propósito recolectar la información requerida para caracterizar las condiciones territoriales, productivas, de acceso a servicios, accesibilidad, atención social y tradiciones culturales de las comunidades. Esta deberá realizarse, de forma colectiva, a los voceros que cada comunidad identifique como sus representantes. Se recomienda que dentro de los delegados para dar respuesta haya representantes de autoridades tradicionales, autoridades administrativas, sabedores y de las familias de la comunidad (incluyendo adolescentes, jóvenes y mujeres).\n\nPara el diligenciamiento, los delegados deberán ponerse de acuerdo y dar sólo una repuesta por pregunta, es decir sólo se diligenciará una encuesta por comunidad. Sin embargo, si la comunidad determina que las respuestas las dará sólo un (1) delegado, esta opción también es válida. En el módulo comunitario el usuario deberá seleccionar la comunidad a la cual se le va a aplicar el instrumento"]
[null,null,"COMUNIDAD"]
[]
[null,null,null,"Nombre de la comunidad 1 *"]
[null,null,null,"Nombre del pueblo",{"$f":"IFERROR(VLOOKUP(E7,Comunidades!$R$1:$W$7,2,0),\"\")","v":""}]
[null,null,null,"Departamento",{"$f":"IFERROR(VLOOKUP(E7,Comunidades!$R$1:$W$7,3,0),\"\")","v":""}]
[null,null,null,"Municipio",{"$f":"IFERROR(VLOOKUP(E7,Comunidades!$R$1:$W$7,4,0),\"\")","v":""}]
[null,null,null,"Nombre del resguardo:",{"$f":"IFERROR(VLOOKUP(E7,Comunidades!$R$1:$W$7,5,0),\"\")","v":""}]
[null,null,null,"Nombre de la cuenca",{"$f":"IFERROR(VLOOKUP(E7,Comunidades!$R$1:$W$7,6,0),\"\")","v":""}]
[]
[null,null,null,"¿El territorio hace parte de una zona de ampliación? *"]
[null,null,null,"¿Cuántas familias hacen parte de la Comunidad? *"]
[null,null,null,"Hace 12 meses ¿cuántas familias hacían parte de la comunidad? *"]
[null,null,null,"¿Se habla lengua propia en la comunidad? *"]
[null,null,null,"¿Qué porcentaje de las personas de la comunidad hablan la lengua propia?"]
[null,null,null,"¿La comunidad tiene un área destinada a la siembra de cultivos de autoconsumo? *"]
[null,null,null,"¿De qué tamaño es esta área?"]
[null,null,null,"¿El producto de la siembra es para beneficio de las familias de la comunidad?"]
[null,null,null,"¿Se producen excedentes para el intercambio o comercio?"]
[null,null,null,"¿La comunidad tiene cría de animales para el autoconsumo comunitario? *"]
[null,null,null,"¿Qué porcentaje de la alimentación de TODAS las familias de la comunidad se atiende con el autoconsumo comunitario?"]
[null,null,null,"¿Durante los últimos 2 años se han presentado manifestaciones naturales que hayan afectado estos cultivos?"]
[null,null,null,"   Inundación"]
[null,null,null,"   Exceso de lluvia"]
[null,null,null,"   Lluvias a destiempo"]
[null,null,null,"   Granizada"]
[null,null,null,"   Helada"]
[null,null,null,"   Sequía"]
[null,null,null,"   Vientos fuertes"]
[null,null,null,"   Deslizamiento de tierra"]
[null,null,null,"   Incendio o quema"]
[null,null,null,"   Plaga"]
[null,null,null,"   Incumplimiento / Omisión tradicional (Confieso / Armonización)"]
[]
[]
[null,null,"PRODUCTIVO"]
[]
[null,null,null,"¿Cuáles son las condiciones de las tierras destinadas para los cultivos en la comunidad?"]
[null,null,null,"¿Cuáles son los principales riesgos que afrontan estas tierras destinadas a los cultivos?"]
[null,null,null,"   Erosión"]
[null,null,null,"   Inundación"]
[null,null,null,"   Dificultades de riego"]
[null,null,null,"   Sequía"]
[null,null,null,"   Otras - Cuales?"]
[null,null,null,"¿Existen tierras destinadas para la conservación?*"]
[null,null,null,"¿Existe algún sistema de recolección o reserva de semillas tradicionales?*"]
[null,null,null,"  ¿Cuál es el estado de este sistema de reserva de semillas?"]
[]
[]
[null,null,"SERVICIOS"]
[null,null,null,"  A cuáles de los siguientes servicios tienen acceso TODOS los integrantes de la comunidad"]
[null,null,null,"a. Salud * al menos una"]
[null,null,null,"       Centro de salud"]
[null,null,null,"       IPS-I"]
[null,null,null,"       IPS"]
[null,null,null,"      Clínica"]
[null,null,null,"      Médico tradicional"]
[null,null,null,"     Otro - Cual?"]
[null,null,null,"b. Saneamiento básico * al menos una"]
[null,null,null,"    Acueducto comunitario"]
[null,null,null,"    Sistema de tratamiento de aguas"]
[null,null,null,"    Baños comunitarios"]
[null,null,null,"c. Educación * al menos una"]
[null,null,null,"    CDI / Hogar comunitario"]
[null,null,null,"      En el CDI / hogar comunitario se enseña en lengua propia?"]
[null,null,null,"    Institución educativa"]
[null,null,null,"      ¿En institución educativa se enseña en lengua propia?"]
[null,null,null,"      ¿Esta institución es Etnoeducativa?"]
[null,null,null,"      ¿En la escuela/colegio tienen currículo etnoeducativo o de educación propia?"]
[null,null,null,"d. Gobierno propio "]
[null,null,null,"    ¿Cuántos Mamos? *"]
[null,null,null,"    ¿Cuántos Cabildo? *"]
[null,null,null,"    ¿Cuántos Semanero? *"]
[null,null,null,"    ¿Cuántos Comisario? *"]
[null,null,null,"    ¿Cuántos Representantes? *"]
[null,null,null,"    ¿Cuántos Líderes? *"]
[null,null,null,"e. Otros * al menos una"]
[null,null,null,"    Casa de la cultura"]
[null,null,null,"    Casa de gobierno"]
[null,null,null,"    Kiosko digital"]
[null,null,null,"    Lugar sagrado de toma de decisiones (P.E. Kankurwa, Unguma)"]
[null,null,null,"    Centro de reuniones"]
[null,null,null,"    Centros de aplicación de justicia"]
[]
[]
[null,null,"ACCESIBILIDAD"]
[null,null,null,"¿Cuáles de los siguientes medios de transporte llegan hasta la comunidad? *"]
[null,null,null,"   Ninguno"]
[null,null,null,"   Vehículos (automóviles / camperos)"]
[null,null,null,"   Motocicletas"]
[null,null,null,"   Animal"]
[null,null,null,"Cuánto tiempo en minutos toma en llegar de su comunidad a la vía vehicular más próxima:"]
[]
[]
[null,null,"ATENCIÓN SOCIAL"]
[null,null,null,"¿En la comunidad durante los últimos 2 años ha habido familias beneficiarias de alguno de los siguientes programas? * "]
[null,null,null,"   Ninguna"]
[null,null,null,"   Familias en acción"]
[null,null,null,"   Red de seguridad alimentaria"]
[null,null,null,"   Emprendimiento colectivo"]
[null,null,null,"   IRACA"]
[null,null,null,"   TEB"]
[null,null,null,"   Otro - Cual? "]
[]
[]
[null,null,"TRADICIONES CULTURALES"]
[null,null,null,"¿Cuáles de las siguientes expresiones culturales tradicionales se desarrollan en la comunidad?"]
[null,null,null,"    Danza/Baile *"]
[null,null,null,"    Lengua / reproducción oral *"]
[null,null,null,"    Prácticas autóctonas *"]
[null,null,null,"    Recorrido tradicional *"]
[null,null,null,"    Trabajos espirituales *"]
[null,null,null,"    Ayu *"]
[null,null,null,"    Pagamento *"]
[null,null,null,"    Ceremonias *"]
[null,null,null,"    Otro"]
[null,null,null,"¿Considera que las prácticas tradicionales se han debilitado en esta comunidad?"]
[null,null,null,"¿En su opinión cuáles de las prácticas tradicionales se han debilitado y en qué nivel?"]
[null,null,null,"    Lengua"]
[null,null,null,"    Consejo"]
[null,null,null,"    Ceremonia"]
[null,null,null,"    Pagamentos"]
[null,null,null,"    Tejido"]

{"sheet":"Base caracterizacion","index":10,"n_rows":3,"n_cols":71,"rows_kept":3,"cut":false,"hidden":true,"merged":[[1,52,1,60],[1,23,1,30],[1,64,1,70]]}
[{"$f":"IF(Caracterización!E8=\"\",\"\",Caracterización!E8)","v":""},{"$f":"IF(Caracterización!E9=\"\",\"\",Caracterización!E9)","v":""},{"$f":"IF(Caracterización!E12=\"\",\"\",Caracterización!E12)","v":""},{"$f":"IF(Caracterización!$E13=\"\",\"\",Caracterización!$E13)","v":""},{"$f":"IF(Caracterización!$E14=\"\",\"\",Caracterización!$E14)","v":""},{"$f":"IF(Caracterización!$E15=\"\",\"\",Caracterización!$E15)","v":""},{"$f":"IF(Caracterización!$E16=\"\",\"\",Caracterización!$E16)","v":""},{"$f":"IF(Caracterización!E17=\"\",\"\",Caracterización!E17)","v":""},{"$f":"IF(Caracterización!E18=\"\",\"\",Caracterización!E18)","v":""},{"$f":"IF(Caracterización!E19=\"\",\"\",Caracterización!E19)","v":""},{"$f":"IF(Caracterización!E20=\"\",\"\",Caracterización!E20)","v":""},{"$f":"IF(Caracterización!E21=\"\",\"\",Caracterización!E21)","v":""},{"$f":"IF(Caracterización!E22=\"\",\"\",Caracterización!E22)","v":""},{"$f":"IF(Caracterización!E23=\"\",\"\",Caracterización!E23)","v":""},{"$f":"IF(Caracterización!E24=\"\",\"\",Caracterización!E24)","v":""},{"$f":"IF(Caracterización!E25=\"\",\"\",Caracterización!E25)","v":""},{"$f":"IF(P1=\"1. Jefe del Grupo Familiar\",A1,IF(Caracterización!E26=\"\",\"\",Caracterización!E26))","v":""},{"$f":"IF(P1=\"1. Jefe del Grupo Familiar\",B1,IF(Caracterización!E27=\"\",\"\",Caracterización!E27))","v":""},{"$f":"IF(P1=\"1. Jefe del Grupo Familiar\",D1&\" \"&F1,IF(Caracterización!E30=\"\",\"\",Caracterización!E30))","v":""},{"$f":"IF(Caracterización!E31=\"\",\"\",Caracterización!E31)","v":""},{"$f":"IF(Caracterización!E32=\"\",\"\",Caracterización!E32)","v":""},{"$f":"IF(Caracterización!E33=\"\",\"\",Caracterización!E33)","v":""},{"$f":"IF(Caracterización!E34=\"\",\"\",Caracterización!E34)","v":""},{"$f":"IF(Caracterización!E37=\"\",\"\",Caracterización!E37)","v":""},{"$f":"IF(Caracterización!E38=\"\",\"\",Caracterización!E38)","v":""},{"$f":"IF(Caracterización!E39=\"\",\"\",Caracterización!E39)","v":""},{"$f":"IF(Caracterización!E40=\"\",\"\",Caracterización!E40)","v":""},{"$f":"IF(Caracterización!E41=\"\",\"\",Caracterización!E41)","v":""},{"$f":"IF(Caracterización!E42=\"\",\"\",Caracterización!E42)","v":""},{"$f":"IF(Caracterización!E43=\"\",\"\",Caracterización!E43)","v":""},{"$f":"IF(Caracterización!E44=\"\",\"\",Caracterización!E44)","v":""},{"$f":"IF(Caracterización!E45=\"\",\"\",Caracterización!E45)","v":""},{"$f":"IF(Caracterización!E46=\"\",\"\",Caracterización!E46)","v":""},{"$f":"IF(Caracterización!E47=\"\",\"\",Caracterización!E47)","v":""},{"$f":"IF(Caracterización!E48=\"\",\"\",Caracterización!E48)","v":""},{"$f":"IF(Caracterización!E49=\"\",\"\",Caracterización!E49)","v":""},{"$f":"IF(Caracterización!E50=\"\",\"\",Caracterización!E50)","v":""},{"$f":"IF(Caracterización!E51=\"\",\"\",Caracterización!E51)","v":""},{"$f":"IF(Caracterización!E52=\"\",\"\",Caracterización!E52)","v":""},{"$f":"IF(Caracterización!E53=\"\",\"\",Caracterización!E53)","v":""},{"$f":"IF(Caracterización!E54=\"\",\"\",Caracterización!E54)","v":""},{"$f":"IF(Caracterización!E55=\"\",\"\",Caracterización!E55)","v":""},{"$f":"IF(Caracterización!E56=\"\",\"\",Caracterización!E56)","v":""},{"$f":"IF(Caracterización!E61=\"\",\"\",Caracterización!E61)","v":""},{"$f":"IF(Caracterización!E62=\"\",\"\",Caracterización!E62)","v":""},{"$f":"IF(Caracterización!E63=\"\",\"\",Caracterización!E63)","v":""},{"$f":"IF(Caracterización!E68=\"\",\"\",Caracterización!E68)","v":""},{"$f":"IF(Caracterización!E69=\"\",\"\",Caracterización!E69)","v":""},{"$f":"IF(Caracterización!E70=\"\",\"\",Caracterización!E70)","v":""},{"$f":"IF(Caracterización!E71=\"\",\"\",Caracterización!E71)","v":""},{"$f":"IF(Caracterización!E76=\"\",\"\",Caracterización!E76)","v":""},{"$f":"IF(Caracterización!E77=\"\",\"\",Caracterización!E77)","v":""},{"$f":"IF(Caracterización!E79=\"\",\"\",Caracterización!E79)","v":""},{"$f":"IF(Caracterización!E80=\"\",\"\",Caracterización!E80)","v":""},{"$f":"IF(Caracterización!E81=\"\",\"\",Caracterización!E81)","v":""},{"$f":"IF(Caracterización!E82=\"\",\"\",Caracterización!E82)","v":""},{"$f":"IF(Caracterización!E83=\"\",\"\",Caracterización!E83)","v":""},{"$f":"IF(Caracterización!E84=\"\",\"\",Caracterización!E84)","v":""},{"$f":"IF(Caracterización!E85=\"\",\"\",Caracterización!E85)","v":""},{"$f":"IF(Caracterización!E86=\"\",\"\",Caracterización!E86)","v":""},{"$f":"IF(Caracterización!E87=\"\",\"\",Caracterización!E87)","v":""},{"$f":"IF(Caracterización!E88=\"\",\"\",Caracterización!E88)","v":""},{"$f":"IF(Caracterización!E89=\"\",\"\",Caracterización!E89)","v":""},{"$f":"IF(Caracterización!E90=\"\",\"\",Caracterización!E90)","v":""},{"$f":"IF(Caracterización!E92=\"\",\"\",Caracterización!E92)","v":""},{"$f":"IF(Caracterización!E93=\"\",\"\",Caracterización!E93)","v":""},{"$f":"IF(Caracterización!E94=\"\",\"\",Caracterización!E94)","v":""},{"$f":"IF(Caracterización!E95=\"\",\"\",Caracterización!E95)","v":""},{"$f":"IF(Caracterización!E96=\"\",\"\",Caracterización!E96)","v":""},{"$f":"IF(Caracterización!E97=\"\",\"\",Caracterización!E97)","v":""},{"$f":"IF(Caracterización!E98=\"\",\"\",Caracterización!E98)","v":""}]
[null,null,null,null,null,null,null,null,null,null,null,null,null,null,null,null,null,null,null,null,null,null,null,"Por enfermedad, accidente o de nacimiento tiene limitantes permanentes para:",null,null,null,null,null,null,null,null,null,null,null,null,null,null,null,null,null,null,null,null,null,null,null,null,null,null,null,null,"      ¿De qué actividades provinieron sus ingresos en el último mes?",null,null,null,null,null,null,null,null,null,null,null,"¿Recibe recursos o participa de alguno de los siguientes programas? (marque todos los que apliquen) *"]
["Tipo de Documento Beneficiaro","Número de Documento beneficiario *","Fecha de vinculación","Primer Nombre *","Segundo Nombre","Primer Apellido *","Segundo Apellido","Sexo *","Fecha de Nacimiento *","Edad","Linaje","Departamento de Nacimiento *","Municipio de nacimiento *","Comunidad de nacimiento (Sierra Nevada de Santa Marta)","¿Está \nregistrado en el autocenso de la comunidad o pueblo?","¿Cuál es el parentesco con el jefe del hogar? *","Tipo de documento del jefe de grupo familiar *","Número de Documento del jefe de grupo familiar *","Primer nombre y primer apellido jefe del grupo familiar","Estado Civil","¿Cuáles son sus roles en la comunidad? Rol 1 *","¿Cuáles son sus roles en la comunidad? Rol 2","¿Cuáles son sus roles en la comunidad? Rol 3","Ninguna","   Ver","   Oir","   Hablar","   Moverse o caminar por sí mismo","   Bañarse, vestirse, alimentarse por sí mismo","   Dificultad para desplazarse fuera de la vivienda sin ayuda o compañía","   Entender o aprender","¿A cuál de los siguientes regímenes de seguridad social está afiliado como cotizante o beneficiario?","En los ÚLTIMOS 30 DÍAS, ¿… tuvo alguna enfermedad, accidente, problema odontológico o algún otro problema de salud que NO haya implicado hospitalización? *","   ¿Acudió a una institución prestadora de servicios de salud, puesto de salud,          \n   profesional o promotor de salud?","   ¿Lo atendieron?","   ¿Acudió al médico tradicional?","   ¿Lo atendieron?","¿Está embarazada? * No aplica","¿Ha tenido hijos nacidos vivos? * No aplica","Tiene hijos/hijas de 0 a 2 años? * No aplica","    ¿La leche materna es parte de la alimentación?","    ¿Su hijo está entre los 0 y 6 meses?  ","    ¿La alimentación es exclusivamente leche materna? ","¿Dónde o con quién permanece … durante la mayor parte del tiempo entre semana? *","   ¿Si asiste a un HC, JI u otro servicio de cuidado, dónde se encuentra ubicado?","Recibe o toma desayuno o almuerzo donde permanece la mayor parte del tiempo","Sabe leer y escribir español","Sabe hablar, leer y/o escribir lengua propia","Actualmente estudia (asiste a preescolar, escuela,\ncolegio o universidad)","¿Cuál es el nivel educativo más alto alcanzado?","¿Cuál fue su actividad principal el último mes? *","   ¿Obtuvo ingresos por trabajo en el último mes?","          Agricultura/Cría de animales","Pesca","          Artesanías","          Comercio","          Trabajo con el sector privado","          Trabajo con el estado","          Trabajo con la comunidad","          Trabajador de finca, tierra o parcela propia en arriendo aparcería o usufructo","          Otro","     Para desarrollar estas actividades debe permanecer por fuera de la   \n     comunidad Si obtuvo ingresos por trabajar","     Pensando en el último año, en un mes promedio, ¿cuántos días debe   \n     permanecer por fuera de la comunidad para el desarrollode estas actividades?","Recibe ingresos de otros hogares o personas residentes en el país","Ninguna","   Familias en Acción","   ReSA","   Emprendimiento colectivo","   IRACA","   TEB","   Otro(s)"]

{"sheet":"Base vivienda-hogar","index":11,"n_rows":3,"n_cols":42,"rows_kept":3,"cut":false,"hidden":true,"merged":[]}
[{"$f":"IF('Vivienda - Hogar'!E7=\"\",\"\",'Vivienda - Hogar'!E7)","v":""},{"$f":"IF('Vivienda - Hogar'!E8=\"\",\"\",'Vivienda - Hogar'!E8)","v":""},{"$f":"IF('Vivienda - Hogar'!E10=\"\",\"\",'Vivienda - Hogar'!E10)","v":""},{"$f":"IF('Vivienda - Hogar'!E11=\"\",\"\",'Vivienda - Hogar'!E11)","v":""},{"$f":"IF('Vivienda - Hogar'!E12=\"\",\"\",'Vivienda - Hogar'!E12)","v":""},{"$f":"IF('Vivienda - Hogar'!E13=\"\",\"\",'Vivienda - Hogar'!E13)","v":""},{"$f":"IF('Vivienda - Hogar'!E15=\"\",\"\",'Vivienda - Hogar'!E15)","v":""},{"$f":"IF('Vivienda - Hogar'!E16=\"\",\"\",'Vivienda - Hogar'!E16)","v":""},{"$f":"IF('Vivienda - Hogar'!E17=\"\",\"\",'Vivienda - Hogar'!E17)","v":""},{"$f":"IF('Vivienda - Hogar'!E18=\"\",\"\",'Vivienda - Hogar'!E18)","v":""},{"$f":"IF('Vivienda - Hogar'!E19=\"\",\"\",'Vivienda - Hogar'!E19)","v":""},{"$f":"IF('Vivienda - Hogar'!E20=\"\",\"\",'Vivienda - Hogar'!E20)","v":""},{"$f":"IF('Vivienda - Hogar'!E21=\"\",\"\",'Vivienda - Hogar'!E21)","v":""},{"$f":"IF('Vivienda - Hogar'!E22=\"\",\"\",'Vivienda - Hogar'!E22)","v":""},{"$f":"IF('Vivienda - Hogar'!E23=\"\",\"\",'Vivienda - Hogar'!E23)","v":""},{"$f":"IF('Vivienda - Hogar'!E24=\"\",\"\",'Vivienda - Hogar'!E24)","v":""},{"$f":"IF('Vivienda - Hogar'!E25=\"\",\"\",'Vivienda - Hogar'!E25)","v":""},{"$f":"IF('Vivienda - Hogar'!E26=\"\",\"\",'Vivienda - Hogar'!E26)","v":""},{"$f":"IF('Vivienda - Hogar'!E27=\"\",\"\",'Vivienda - Hogar'!E27)","v":""},{"$f":"IF('Vivienda - Hogar'!E28=\"\",\"\",'Vivienda - Hogar'!E28)","v":""},{"$f":"IF('Vivienda - Hogar'!E29=\"\",\"\",'Vivienda - Hogar'!E29)","v":""},{"$f":"IF('Vivienda - Hogar'!E30=\"\",\"\",'Vivienda - Hogar'!E30)","v":""},{"$f":"IF('Vivienda - Hogar'!E35=\"\",\"\",'Vivienda - Hogar'!E35)","v":""},{"$f":"IF('Vivienda - Hogar'!E36=\"\",\"\",'Vivienda - Hogar'!E36)","v":""},{"$f":"IF('Vivienda - Hogar'!E37=\"\",\"\",'Vivienda - Hogar'!E37)","v":""},{"$f":"IF('Vivienda - Hogar'!E38=\"\",\"\",'Vivienda - Hogar'!E38)","v":""},{"$f":"IF('Vivienda - Hogar'!E39=\"\",\"\",'Vivienda - Hogar'!E39)","v":""},{"$f":"IF('Vivienda - Hogar'!E40=\"\",\"\",'Vivienda - Hogar'!E40)","v":""},{"$f":"IF('Vivienda - Hogar'!E41=\"\",\"\",'Vivienda - Hogar'!E41)","v":""},{"$f":"IF('Vivienda - Hogar'!E42=\"\",\"\",'Vivienda - Hogar'!E42)","v":""},{"$f":"IF('Vivienda - Hogar'!E43=\"\",\"\",'Vivienda - Hogar'!E43)","v":""},{"$f":"IF('Vivienda - Hogar'!E44=\"\",\"\",'Vivienda - Hogar'!E44)","v":""},{"$f":"IF('Vivienda - Hogar'!E45=\"\",\"\",'Vivienda - Hogar'!E45)","v":""},{"$f":"IF('Vivienda - Hogar'!E46=\"\",\"\",'Vivienda - Hogar'!E46)","v":""},{"$f":"IF('Vivienda - Hogar'!E48=\"\",\"\",'Vivienda - Hogar'!E48)","v":""},{"$f":"IF('Vivienda - Hogar'!E49=\"\",\"\",'Vivienda - Hogar'!E49)","v":""},{"$f":"IF('Vivienda - Hogar'!E50=\"\",\"\",'Vivienda - Hogar'!E50)","v":""},{"$f":"IF('Vivienda - Hogar'!E51=\"\",\"\",'Vivienda - Hogar'!E51)","v":""},{"$f":"IF('Vivienda - Hogar'!E52=\"\",\"\",'Vivienda - Hogar'!E52)","v":""},{"$f":"IF('Vivienda - Hogar'!E53=\"\",\"\",'Vivienda - Hogar'!E53)","v":""},{"$f":"IF('Vivienda - Hogar'!E54=\"\",\"\",'Vivienda - Hogar'!E54)","v":""},{"$f":"IF('Vivienda - Hogar'!E5=\"\",\"\",'Vivienda - Hogar'!E55)","v":""}]
[]
["Tipo de documento del jefe de grupo familiar *","Número de Documento del jefe de grupo familiar *","Primer nombre y primer apellido jefe del grupo familiar *","Comunidad a la que pertenece","Tipo de vivienda *","En que condición se encuentra la vivienda *","   Ninguno","   ¿Cuenta con servicio de energia electrica ? *","   ¿Cuantos días a la semana cuenta con servicio de energia electrica?","   ¿Cuenta con servicio de alcantarillado? *","   ¿Cuantos días cuenta con servicio de alcantarillado?","   ¿Cuenta con servicio de gas natural? *","   ¿Cuantos días cuenta con servicio de gas natural?","   ¿Cuenta con servicio de acueducto? *","   ¿Cuantos días cuenta con servicio de acueducto?","   ¿Cuenta con servicio telefónico? *","   ¿Cuantos días cuenta con servicio telefónico?","   ¿Cuenta con servicio de aseo y disposición de residuos? *","   ¿Cuantos días cuenta con servicio de aseo y disposición de residuos?","La vivienda ocupada por este hogar es","¿Cuántos cuartos tiene la vivienda?*","¿Cuántos cuartos en la vivienda son usados EXCLUSIVAMENTE para dormir? *","¿Qué tipo de sanitario utiliza este hogar?","¿Dónde se encuentra el sanitario que utilizan las personas de este hogar?","El sanitario que utilizan las personas de este hogar es:","El agua para el consumo o preparación de alimentos la obtienen principalmente de: *","¿En los días que está disponible el agua el suministro es 24 horas? ","El agua para beber principalmente:","¿Cómo se manejan los residuos en este hogar?","¿El hogar tiene cocina? *","En dónde preparan los alimentos las personas de este hogar *","La cocina o sitio para preparar alimentos es","¿Qué energía o combustible utiliza principalmente el hogar para cocinar? *","¿Cuánto tiempo lleva habitando esta vivienda? *","Ninguno","   Inundaciones, crecientes o arroyos","   Avalanchas, derrumbes o desplazamientos","   Terremotos","   Incendios","   Vendavales, ventarrones, tormentas","   Hundimientos de terreno","   Otro ¿Cuál?"]

{"sheet":"Base Horcones","index":12,"n_rows":3,"n_cols":109,"rows_kept":3,"cut":false,"hidden":true,"merged":[]}
[{"$f":"IF(Horcones!E7=\"\",\"\",Horcones!E7)","v":""},{"$f":"IF(Horcones!E8=\"\",\"\",Horcones!E8)","v":""},{"$f":"IF(Horcones!E11=\"\",\"\",Horcones!E11)","v":""},{"$f":"IF(Horcones!E12=\"\",\"\",Horcones!E12)","v":""},{"$f":"IF(Horcones!E13=\"\",\"\",Horcones!E13)","v":""},{"$f":"IF(Horcones!E14=\"\",\"\",Horcones!E14)","v":""},{"$f":"IF(Horcones!E15=\"\",\"\",Horcones!E15)","v":""},{"$f":"IF(Horcones!E16=\"\",\"\",Horcones!E16)","v":""},{"$f":"IF(Horcones!E17=\"\",\"\",Horcones!E17)","v":""},{"$f":"IF(Horcones!E18=\"\",\"\",Horcones!E18)","v":""},{"$f":"IF(Horcones!E19=\"\",\"\",Horcones!E19)","v":""},{"$f":"IF(Horcones!E20=\"\",\"\",Horcones!E20)","v":""},{"$f":"IF(Horcones!E22=\"\",\"\",Horcones!E22)","v":""},{"$f":"IF(Horcones!E23=\"\",\"\",Horcones!E23)","v":""},{"$f":"IF(Horcones!E24=\"\",\"\",Horcones!E24)","v":""},{"$f":"IF(Horcones!E26=\"\",\"\",Horcones!E26)","v":""},{"$f":"IF(Horcones!E27=\"\",\"\",Horcones!E27)","v":""},{"$f":"IF(Horcones!E28=\"\",\"\",Horcones!E28)","v":""},{"$f":"IF(Horcones!E29=\"\",\"\",Horcones!E29)","v":""},{"$f":"IF(Horcones!E30=\"\",\"\",Horcones!E30)","v":""},{"$f":"IF(Horcones!E31=\"\",\"\",Horcones!E31)","v":""},{"$f":"IF(Horcones!E32=\"\",\"\",Horcones!E32)","v":""},{"$f":"IF(Horcones!E34=\"\",\"\",Horcones!E34)","v":""},{"$f":"IF(Horcones!E35=\"\",\"\",Horcones!E35)","v":""},{"$f":"IF(Horcones!E36=\"\",\"\",Horcones!E36)","v":""},{"$f":"IF(Horcones!E37=\"\",\"\",Horcones!E37)","v":""},{"$f":"IF(Horcones!E38=\"\",\"\",Horcones!E38)","v":""},{"$f":"IF(Horcones!E39=\"\",\"\",Horcones!E39)","v":""},{"$f":"IF(Horcones!E40=\"\",\"\",Horcones!E40)","v":""},{"$f":"IF(Horcones!E41=\"\",\"\",Horcones!E41)","v":""},{"$f":"IF(Horcones!E43=\"\",\"\",Horcones!E43)","v":""},{"$f":"IF(Horcones!E44=\"\",\"\",Horcones!E44)","v":""},{"$f":"IF(Horcones!E45=\"\",\"\",Horcones!E45)","v":""},{"$f":"IF(Horcones!E46=\"\",\"\",Horcones!E46)","v":""},{"$f":"IF(Horcones!E47=\"\",\"\",Horcones!E47)","v":""},{"$f":"IF(Horcones!E48=\"\",\"\",Horcones!E48)","v":""},{"$f":"IF(Horcones!E49=\"\",\"\",Horcones!E49)","v":""},{"$f":"IF(Horcones!E50=\"\",\"\",Horcones!E50)","v":""},{"$f":"IF(Horcones!E57=\"\",\"\",Horcones!E57)","v":""},{"$f":"IF(Horcones!E58=\"\",\"\",Horcones!E58)","v":""},{"$f":"IF(Horcones!E59=\"\",\"\",Horcones!E59)","v":""},{"$f":"IF(Horcones!E60=\"\",\"\",Horcones!E60)","v":""},{"$f":"IF(Horcones!E62=\"\",\"\",Horcones!E62)","v":""},{"$f":"IF(Horcones!E63=\"\",\"\",Horcones!E63)","v":""},{"$f":"IF(Horcones!E64=\"\",\"\",Horcones!E64)","v":""},{"$f":"IF(Horcones!E65=\"\",\"\",Horcones!E65)","v":""},{"$f":"IF(Horcones!E66=\"\",\"\",Horcones!E66)","v":""},{"$f":"IF(Horcones!E67=\"\",\"\",Horcones!E67)","v":""},{"$f":"IF(Horcones!E68=\"\",\"\",Horcones!E68)","v":""},{"$f":"IF(Horcones!E74=\"\",\"\",Horcones!E74)","v":""},{"$f":"IF(Horcones!E75=\"\",\"\",Horcones!E75)","v":""},{"$f":"IF(Horcones!E76=\"\",\"\",Horcones!E76)","v":""},{"$f":"IF(Horcones!E77=\"\",\"\",Horcones!E77)","v":""},{"$f":"IF(Horcones!E78=\"\",\"\",Horcones!E78)","v":""},{"$f":"IF(Horcones!E79=\"\",\"\",Horcones!E79)","v":""},{"$f":"IF(Horcones!E80=\"\",\"\",Horcones!E80)","v":""},{"$f":"IF(Horcones!E81=\"\",\"\",Horcones!E81)","v":""},{"$f":"IF(Horcones!E82=\"\",\"\",Horcones!E82)","v":""},{"$f":"IF(Horcones!E83=\"\",\"\",Horcones!E83)","v":""},{"$f":"IF(Horcones!E84=\"\",\"\",Horcones!E84)","v":""},{"$f":"IF(Horcones!E85=\"\",\"\",Horcones!E85)","v":""},{"$f":"IF(Horcones!E86=\"\",\"\",Horcones!E86)","v":""},{"$f":"IF(Horcones!E87=\"\",\"\",Horcones!E87)","v":""},{"$f":"IF(Horcones!E88=\"\",\"\",Horcones!E88)","v":""},{"$f":"IF(Horcones!E89=\"\",\"\",Horcones!E89)","v":""},{"$f":"IF(Horcones!E90=\"\",\"\",Horcones!E90)","v":""},{"$f":"IF(Horcones!E91=\"\",\"\",Horcones!E91)","v":""},{"$f":"IF(Horcones!E92=\"\",\"\",Horcones!E92)","v":""},{"$f":"IF(Horcones!E93=\"\",\"\",Horcones!E93)","v":""},{"$f":"IF(Horcones!E94=\"\",\"\",Horcones!E94)","v":""},{"$f":"IF(Horcones!E95=\"\",\"\",Horcones!E95)","v":""},{"$f":"IF(Horcones!E96=\"\",\"\",Horcones!E96)","v":""},{"$f":"IF(Horcones!E97=\"\",\"\",Horcones!E97)","v":""},{"$f":"IF(Horcones!E98=\"\",\"\",Horcones!E98)","v":""},{"$f":"IF(Horcones!E99=\"\",\"\",Horcones!E99)","v":""},{"$f":"IF(Horcones!E100=\"\",\"\",Horcones!E100)","v":""},{"$f":"IF(Horcones!E101=\"\",\"\",Horcones!E101)","v":""},{"$f":"IF(Horcones!E102=\"\",\"\",Horcones!E102)","v":""},{"$f":"IF(Horcones!E103=\"\",\"\",Horcones!E103)","v":""},{"$f":"IF(Horcones!E104=\"\",\"\",Horcones!E104)","v":""},{"$f":"IF(Horcones!E105=\"\",\"\",Horcones!E105)","v":""},{"$f":"IF(Horcones!E106=\"\",\"\",Horcones!E106)","v":""},{"$f":"IF(Horcones!E107=\"\",\"\",Horcones!E107)","v":""},{"$f":"IF(Horcones!E108=\"\",\"\",Horcones!E108)","v":""},{"$f":"IF(Horcones!E109=\"\",\"\",Horcones!E109)","v":""},{"$f":"IF(Horcones!E110=\"\",\"\",Horcones!E110)","v":""},{"$f":"IF(Horcones!E111=\"\",\"\",Horcones!E111)","v":""},{"$f":"IF(Horcones!E112=\"\",\"\",Horcones!E112)","v":""},{"$f":"IF(Horcones!E113=\"\",\"\",Horcones!E113)","v":""},{"$f":"IF(Horcones!E114=\"\",\"\",Horcones!E114)","v":""},{"$f":"IF(Horcones!E115=\"\",\"\",Horcones!E115)","v":""},{"$f":"IF(Horcones!E116=\"\",\"\",Horcones!E116)","v":""},{"$f":"IF(Horcones!E117=\"\",\"\",Horcones!E117)","v":""},{"$f":"IF(Horcones!E118=\"\",\"\",Horcones!E118)","v":""},{"$f":"IF(Horcones!E119=\"\",\"\",Horcones!E119)","v":""},{"$f":"IF(Horcones!E120=\"\",\"\",Horcones!E120)","v":""},{"$f":"IF(Horcones!E121=\"\",\"\",Horcones!E121)","v":""},{"$f":"IF(Horcones!E122=\"\",\"\",Horcones!E122)","v":""},{"$f":"IF(Horcones!E123=\"\",\"\",Horcones!E123)","v":""},{"$f":"IF(Horcones!E124=\"\",\"\",Horcones!E124)","v":""},{"$f":"IF(Horcones!E125=\"\",\"\",Horcones!E125)","v":""},{"$f":"IF(Horcones!E126=\"\",\"\",Horcones!E126)","v":""},{"$f":"IF(Horcones!E127=\"\",\"\",Horcones!E127)","v":""},{"$f":"IF(Horcones!E128=\"\",\"\",Horcones!E128)","v":""},{"$f":"IF(Horcones!E129=\"\",\"\",Horcones!E129)","v":""},{"$f":"IF(Horcones!E130=\"\",\"\",Horcones!E130)","v":""},{"$f":"IF(Horcones!E131=\"\",\"\",Horcones!E131)","v":""},{"$f":"IF(Horcones!E132=\"\",\"\",Horcones!E132)","v":""},{"$f":"IF(Horcones!E133=\"\",\"\",Horcones!E133)","v":""}]
[]
["Tipo de documento del jefe de grupo familiar","Número de Documento del jefe de grupo familiar","Primer nombre y primer apellido jefe del grupo familiar","¿El hogar cuenta con una o varias áreas exclusivas para cultivos de autoconsumo? *","De qué tamaño es esta área (en hectáreas)","¿Se siembran cultivos para\nautoconsumo o el consumo en el hogar?","¿Se siembran cultivos para la venta o trueque? ","¿Cómo se hace el riego?","¿Se crían animales para el autoconsumo? *","¿Se crían animales para la venta o trueque? *","¿Se desarrollan actividades de pesca para el autoconsumo? *","¿Se desarrollan actividades de caza para el autoconsumo? *","   Comida 1 *","   Comida 2 *","   Comida 3 *","   a. Alimentos de la comunidad","   b. Compra y/o truque de alimentos","   c. Alimentos de la institución educativa","   d. Donaciones","   e. Otra","¿Pensando en la próxima semana y suponiendo una dieta de 3 comidas al día, considera que el hogar podrá cubrir la totalidad de sus necesidades alimentarias?","¿Qué parte NO está cubierto?","En los últimos 12 meses, por falta de dinero u otros recursos, ¿alguna vez usted se preocupó por que los alimentos se acabaran en su hogar?","En los últimos 12 meses, por falta de dinero u otros recursos, ¿alguna vez en su hogar dejaron de tener una alimentación nutritiva y saludable?","En los últimos 12 meses, por falta de dinero u otros recursos, ¿alguna vez usted o algún adulto en su hogar tuvo una alimentación basada en poca variedad de alimentos?","En los últimos 12 meses, por falta de dinero u otros recursos, ¿alguna vez usted o algún adulto en su hogar dejó de desayunar, almorzar o cenar?","En los últimos 12 meses, por falta de dinero u otros recursos, ¿alguna vez usted o algún adulto en su hogar comió menos de lo que debía comer?","En los últimos 12 meses, por falta de dinero u otros recursos, ¿alguna vez en su hogar se quedaron sin alimentos?","En los últimos 12 meses, por falta de dinero u otros recursos, ¿alguna vez usted o algún adulto en su hogar sintió hambre pero no comió?","En los últimos 12 meses, por falta de dinero u otros recursos, ¿alguna vez usted o algún adulto en su hogar solo comió una vez al día o dejó de comer durante todo un día?","¿En los últimos 7 días su hogar tuvo que consumir alimentos de menor calidad y/o más baratos?","¿En los últimos 7 días su hogar tuvo que pedir prestado para comprar alimentos o dependió de un familiar, amigo o conocido para adquirir alimentos?","¿En los últimos 7 días, su hogar tuvo que disminuir las porciones de las comidas para que pudiera alcanzar la comida en el hogar?","¿En los últimos 7 días, su hogar tuvo que VENDER o EMPEÑAR algunos bienes o pertenencias de la familia (utensilios, muebles, equipos electrónicos) para adquirir alimentos para el consumo del hogar?","¿En los últimos 7 días, su hogar tuvo que VENDER o EMPEÑAR herramientas, semillas de la próxima cosecha, animales o elementos de trabajo para adquirir alimento para el consumo del hogar?","¿En los últimos 7 días, su hogar tuvo que VENDER algunos animales (gallinas, vacas) fuera del tiempo planeado para comprar o adquirir alimentos para el consumo del hogar?","¿En los últimos 7 días, su hogar tuvo que CONSUMIR las semillas de la próxima cosecha o algún animal de cría porque no había otros o ningún alimento en el hogar?","¿En los últimos 7 días por falta de alimentos, en su hogar contó con ayuda de vecinos o familiares para la alimentación de los niños o niñas de su hogar?","Usted y TODOS los integrantes pertinentes de su hogar, reconocen a las autoridades tradicionales","Usted y TODOS los integrantes pertinentes de su hogar, Conocen los procedimientos internos de justicia propia","Usted y TODOS los integrantes pertinentes de su hogar, conocen o han recorrido los sitios sagrados","Usted o ALGÚN miembro de su hogar Participa en los espacios políticos de toma de decisiones","No les interesa","No los representa","No es fácil acceder a las autoridades","Cuando han participado no han atendido sus necesidades","No saben cómo acceder","No están autorizados","Otra, cuál?","    Danza/ baile *","       ¿Con que frecuencia se practica esta practica?","       ¿Cuál es la principal  razón por la que NO se practican o se practican poco?","      ¿Obtiene ingresos o realiza alguna actividad comercial con esta práctica?","    Musica *","       ¿Con que frecuencia se practica esta practica?","       ¿Cuál es la principal  razón por la que NO se practican o se practican poco?","      ¿Obtiene ingresos o realiza alguna actividad comercial con esta práctica?","Lengua / reproducción oral","       ¿Con que frecuencia se practica esta practica?","       ¿Cuál es la principal  razón por la que NO se practican o se practican poco?","      ¿Obtiene ingresos o realiza alguna actividad comercial con esta práctica?","Trabajos espirituales","       ¿Con que frecuencia se practica esta practica?","       ¿Cuál es la principal  razón por la que NO se practican o se practican poco?","      ¿Obtiene ingresos o realiza alguna actividad comercial con esta práctica?","Recoger ayu","       ¿Con que frecuencia se practica esta practica?","       ¿Cuál es la principal  razón por la que NO se practican o se practican poco?","      ¿Obtiene ingresos o realiza alguna actividad comercial con esta práctica?","Hacer Pagamento","       ¿Con que frecuencia se practica esta practica?","       ¿Cuál es la principal  razón por la que NO se practican o se practican poco?","      ¿Obtiene ingresos o realiza alguna actividad comercial con esta práctica?","Baño con plantas medicinales","       ¿Con que frecuencia se practica esta practica?","       ¿Cuál es la principal  razón por la que NO se practican o se practican poco?","      ¿Obtiene ingresos o realiza alguna actividad comercial con esta práctica?","Uso de traje tradicional","       ¿Con que frecuencia se practica esta practica?","       ¿Cuál es la principal  razón por la que NO se practican o se practican poco?","      ¿Obtiene ingresos o realiza alguna actividad comercial con esta práctica?","Bautizo de casas","       ¿Con que frecuencia se practica esta practica?","       ¿Cuál es la principal  razón por la que NO se practican o se practican poco?","      ¿Obtiene ingresos o realiza alguna actividad comercial con esta práctica?","Alimento tradicional","       ¿Con que frecuencia se practica esta practica?","       ¿Cuál es la principal  razón por la que NO se practican o se practican poco?","      ¿Obtiene ingresos o realiza alguna actividad comercial con esta práctica?","Salud propia","       ¿Con que frecuencia se practica esta practica?","       ¿Cuál es la principal  razón por la que NO se practican o se practican poco?","      ¿Obtiene ingresos o realiza alguna actividad comercial con esta práctica?","Tejido de mantas","       ¿Con que frecuencia se practica esta practica?","       ¿Cuál es la principal  razón por la que NO se practican o se practican poco?","      ¿Obtiene ingresos o realiza alguna actividad comercial con esta práctica?","Tejido de mochilas","       ¿Con que frecuencia se practica esta practica?","       ¿Cuál es la principal  razón por la que NO se practican o se practican poco?","      ¿Obtiene ingresos o realiza alguna actividad comercial con esta práctica?","Cal (recoger conchas y tostarlas)","       ¿Con que frecuencia se practica esta practica?","       ¿Cuál es la principal  razón por la que NO se practican o se practican poco?","      ¿Obtiene ingresos o realiza alguna actividad comercial con esta práctica?","Otra(s). ¿Cuál?","       ¿Con que frecuencia se practica esta practica?","       ¿Cuál es la principal  razón por la que NO se practican o se practican poco?","      ¿Obtiene ingresos o realiza alguna actividad comercial con esta práctica?"]

{"sheet":"Base Comunitario","index":13,"n_rows":3,"n_cols":91,"rows_kept":3,"cut":false,"hidden":true,"merged":[]}
[{"$f":"IF(Comunitario!E7=\"\",\"\",Comunitario!E7)","v":""},{"$f":"IF(Comunitario!E8=\"\",\"\",Comunitario!E8)","v":""},{"$f":"IF(Comunitario!E9=\"\",\"\",Comunitario!E9)","v":""},{"$f":"IF(Comunitario!E10=\"\",\"\",Comunitario!E10)","v":""},{"$f":"IF(Comunitario!E11=\"\",\"\",Comunitario!E11)","v":""},{"$f":"IF(Comunitario!E12=\"\",\"\",Comunitario!E12)","v":""},{"$f":"IF(Comunitario!E14=\"\",\"\",Comunitario!E14)","v":""},{"$f":"IF(Comunitario!E15=\"\",\"\",Comunitario!E15)","v":""},{"$f":"IF(Comunitario!E16=\"\",\"\",Comunitario!E16)","v":""},{"$f":"IF(Comunitario!E17=\"\",\"\",Comunitario!E17)","v":""},{"$f":"IF(Comunitario!E18=\"\",\"\",Comunitario!E18)","v":""},{"$f":"IF(Comunitario!E19=\"\",\"\",Comunitario!E19)","v":""},{"$f":"IF(Comunitario!E20=\"\",\"\",Comunitario!E20)","v":""},{"$f":"IF(Comunitario!E21=\"\",\"\",Comunitario!E21)","v":""},{"$f":"IF(Comunitario!E22=\"\",\"\",Comunitario!E22)","v":""},{"$f":"IF(Comunitario!E23=\"\",\"\",Comunitario!E23)","v":""},{"$f":"IF(Comunitario!E24=\"\",\"\",Comunitario!E24)","v":""},{"$f":"IF(Comunitario!E26=\"\",\"\",Comunitario!E26)","v":""},{"$f":"IF(Comunitario!E27=\"\",\"\",Comunitario!E27)","v":""},{"$f":"IF(Comunitario!E28=\"\",\"\",Comunitario!E28)","v":""},{"$f":"IF(Comunitario!E29=\"\",\"\",Comunitario!E29)","v":""},{"$f":"IF(Comunitario!E30=\"\",\"\",Comunitario!E30)","v":""},{"$f":"IF(Comunitario!E31=\"\",\"\",Comunitario!E31)","v":""},{"$f":"IF(Comunitario!E32=\"\",\"\",Comunitario!E32)","v":""},{"$f":"IF(Comunitario!E33=\"\",\"\",Comunitario!E33)","v":""},{"$f":"IF(Comunitario!E34=\"\",\"\",Comunitario!E34)","v":""},{"$f":"IF(Comunitario!E35=\"\",\"\",Comunitario!E35)","v":""},{"$f":"IF(Comunitario!E36=\"\",\"\",Comunitario!E36)","v":""},{"$f":"IF(Comunitario!E41=\"\",\"\",Comunitario!E41)","v":""},{"$f":"IF(Comunitario!E43=\"\",\"\",Comunitario!E43)","v":""},{"$f":"IF(Comunitario!E44=\"\",\"\",Comunitario!E44)","v":""},{"$f":"IF(Comunitario!E45=\"\",\"\",Comunitario!E45)","v":""},{"$f":"IF(Comunitario!E46=\"\",\"\",Comunitario!E46)","v":""},{"$f":"IF(Comunitario!E47=\"\",\"\",Comunitario!E47)","v":""},{"$f":"IF(Comunitario!E48=\"\",\"\",Comunitario!E48)","v":""},{"$f":"IF(Comunitario!E49=\"\",\"\",Comunitario!E49)","v":""},{"$f":"IF(Comunitario!E50=\"\",\"\",Comunitario!E50)","v":""},{"$f":"IF(Comunitario!E56=\"\",\"\",Comunitario!E56)","v":""},{"$f":"IF(Comunitario!E57=\"\",\"\",Comunitario!E57)","v":""},{"$f":"IF(Comunitario!E58=\"\",\"\",Comunitario!E58)","v":""},{"$f":"IF(Comunitario!E59=\"\",\"\",Comunitario!E59)","v":""},{"$f":"IF(Comunitario!E60=\"\",\"\",Comunitario!E60)","v":""},{"$f":"IF(Comunitario!E61=\"\",\"\",Comunitario!E61)","v":""},{"$f":"IF(Comunitario!E63=\"\",\"\",Comunitario!E63)","v":""},{"$f":"IF(Comunitario!E64=\"\",\"\",Comunitario!E64)","v":""},{"$f":"IF(Comunitario!E65=\"\",\"\",Comunitario!E65)","v":""},{"$f":"IF(Comunitario!E67=\"\",\"\",Comunitario!E67)","v":""},{"$f":"IF(Comunitario!E68=\"\",\"\",Comunitario!E68)","v":""},{"$f":"IF(Comunitario!E69=\"\",\"\",Comunitario!E69)","v":""},{"$f":"IF(Comunitario!E70=\"\",\"\",Comunitario!E70)","v":""},{"$f":"IF(Comunitario!E71=\"\",\"\",Comunitario!E71)","v":""},{"$f":"IF(Comunitario!E72=\"\",\"\",Comunitario!E72)","v":""},{"$f":"IF(Comunitario!E74=\"\",\"\",Comunitario!E74)","v":""},{"$f":"IF(Comunitario!E75=\"\",\"\",Comunitario!E75)","v":""},{"$f":"IF(Comunitario!E76=\"\",\"\",Comunitario!E76)","v":""},{"$f":"IF(Comunitario!E77=\"\",\"\",Comunitario!E77)","v":""},{"$f":"IF(Comunitario!E78=\"\",\"\",Comunitario!E78)","v":""},{"$f":"IF(Comunitario!E79=\"\",\"\",Comunitario!E79)","v":""},{"$f":"IF(Comunitario!E81=\"\",\"\",Comunitario!E81)","v":""},{"$f":"IF(Comunitario!E82=\"\",\"\",Comunitario!E82)","v":""},{"$f":"IF(Comunitario!E83=\"\",\"\",Comunitario!E83)","v":""},{"$f":"IF(Comunitario!E84=\"\",\"\",Comunitario!E84)","v":""},{"$f":"IF(Comunitario!E85=\"\",\"\",Comunitario!E85)","v":""},{"$f":"IF(Comunitario!E86=\"\",\"\",Comunitario!E86)","v":""},{"$f":"IF(Comunitario!E91=\"\",\"\",Comunitario!E91)","v":""},{"$f":"IF(Comunitario!E92=\"\",\"\",Comunitario!E92)","v":""},{"$f":"IF(Comunitario!E93=\"\",\"\",Comunitario!E93)","v":""},{"$f":"IF(Comunitario!E94=\"\",\"\",Comunitario!E94)","v":""},{"$f":"IF(Comunitario!E95=\"\",\"\",Comunitario!E95)","v":""},{"$f":"IF(Comunitario!E100=\"\",\"\",Comunitario!E100)","v":""},{"$f":"IF(Comunitario!E101=\"\",\"\",Comunitario!E101)","v":""},{"$f":"IF(Comunitario!E102=\"\",\"\",Comunitario!E102)","v":""},{"$f":"IF(Comunitario!E103=\"\",\"\",Comunitario!E103)","v":""},{"$f":"IF(Comunitario!E104=\"\",\"\",Comunitario!E104)","v":""},{"$f":"IF(Comunitario!E105=\"\",\"\",Comunitario!E105)","v":""},{"$f":"IF(Comunitario!E106=\"\",\"\",Comunitario!E106)","v":""},{"$f":"IF(Comunitario!E111=\"\",\"\",Comunitario!E111)","v":""},{"$f":"IF(Comunitario!E112=\"\",\"\",Comunitario!E112)","v":""},{"$f":"IF(Comunitario!E113=\"\",\"\",Comunitario!E113)","v":""},{"$f":"IF(Comunitario!E114=\"\",\"\",Comunitario!E114)","v":""},{"$f":"IF(Comunitario!E115=\"\",\"\",Comunitario!E115)","v":""},{"$f":"IF(Comunitario!E116=\"\",\"\",Comunitario!E116)","v":""},{"$f":"IF(Comunitario!E117=\"\",\"\",Comunitario!E117)","v":""},{"$f":"IF(Comunitario!E118=\"\",\"\",Comunitario!E118)","v":""},{"$f":"IF(Comunitario!E119=\"\",\"\",Comunitario!E119)","v":""},{"$f":"IF(Comunitario!E120=\"\",\"\",Comunitario!E120)","v":""},{"$f":"IF(Comunitario!E122=\"\",\"\",Comunitario!E122)","v":""},{"$f":"IF(Comunitario!E123=\"\",\"\",Comunitario!E123)","v":""},{"$f":"IF(Comunitario!E124=\"\",\"\",Comunitario!E124)","v":""},{"$f":"IF(Comunitario!E125=\"\",\"\",Comunitario!E125)","v":""},{"$f":"IF(Comunitario!E126=\"\",\"\",Comunitario!E126)","v":""}]
[]
["Nombre de la comunidad 1 *","Nombre del pueblo","Departamento","Municipio","Nombre del resguardo:","Nombre de la cuenca","¿El territorio hace parte de una zona de ampliación? *","¿Cuántas familias hacen parte de la Comunidad? *","Hace 12 meses cuántas familias hacían parte de la comunidad *","¿Se habla lengua propia en la comunidad? *","¿Qué porcentaje de las personas de la comunidad hablan la lengua propia?","¿La comunidad tiene un área destinada a la siembra de cultivos de autoconsumo? *","¿De qué tamaño es esta área?","¿El producto de la siembra es para beneficio de las familias de la comunidad?","¿Se producen excedentes para el intercambio o comercio?","¿La comunidad tiene cría de animales para el autoconsumo comunitario? *","¿Qué porcentaje de la alimentación de TODAS las familias de la comunidad se atiende con el autoconsumo comunitario?","   Inundación","   Exceso de lluvia","   Lluvias a destiempo","   Granizada","   Helada","   Sequía","   Vientos fuertes","   Deslizamiento de tierra","   Incendio o quema","   Plaga","   Incumplimiento / Omisión tradicional (Coinfieso / Armonización)","¿Cuáles son las condiciones de las tierras destinadas para los cultivos en la comunidad?","    Erosión","   Inundación","   Dificultades de riego","   Sequía","   Otras - Cuales?","¿Existen tierras destinadas para la conservación?*","¿Existe algún sistema de recolección o reserva de semillas tradicionales?*","¿Cuál es el estado de este sistema de reserva de semillas? Depende de si en anterior","       Centro de salud","       IPS-I","       IPS","      Clínica","      Médico tradicional","     Otro - Cual?","    Acueducto comunitario","    Sistema de tratamiento de aguas","    Baños comunitarios","    CDI / Hogar comunitario","    En el CDI / hogar comunitario se enseña en lengua propia? Depende de si en anterior","    Institución educativa","      ¿En institución educativa se enseña en lengua propia? Depende de si anterior","      ¿Esta institución es Etnoeducativa?","      En la escuela/colegio tienen currículo etnoeducativo o de educación propia? Si es no hay no se activa","    ¿Cuántos Mamos?","    ¿Cuántos Cabildo?","    ¿Cuántos Semanero?","    ¿Cuántos Comisario?","    ¿Cuántos Representantes?","    ¿Cuántos Líderes?","    Casa de la cultura","    Casa de gobierno","    Kiosko digital","    Kankurwa","    Centro de reuniones","    Centros de aplicación de justicia","   Ninguno","   Vehículos (automóviles / camperos)","   Motocicletas","   Animal","Cuánto tiempo en minutos toma en llegar de su comunidad a la vía vehicular más próxima:","Ninguno","   Familias en acción","   Red de seguridad alimentaria","   Emprendimiento colectivo","   IRACA","   TEB","   Otro - Cual? ","    Danza/Baile lista mucho poco o nada","    Lengua / reproducción oral","    Prácticas autóctonas","    Recorrido tradicional","    Trabajos espirituales","    Ayu","    Pagamento","    Ceremonias","    Otro","¿Considera que las prácticas tradicionales se han debilitado en esta comunidad?","    Lengua","    Consejo","    Ceremonia","    Pagamentos","    Tejido"]